Workbook

Sheet Sheet1 (hidden)
B1: Newton Raphson Method to solve for concentration at input time, Bolus Equation
B2: Input Weight (kg) | C2: 70
B3: Calculated Vd | C3: =0.65*C2 -> 45.5
B4: Input Km(mg/l) | C4: 4
B5: Input Vmax mg/kg/day | C5: 7
B6: Vmax mg/hours | C6: =C5*C2/24 -> 20.41666667
B7: Calculated Vmax mg/hour/liter | C7: =C5*C2/(24*C3) -> 0.4487179487
B8: Dose(mg) | C8: 1000 | I8: Exact and Apporximate Soutions for Decades old MM equations | J8: Explicit Reformulations of the Lambert W-omega function for calculation of solution to one compartment pk models with MM elimination kinetics
B9: Calculated Cpo | C9: =C8/C3 -> 21.97802198 | I9: x of W equation
B10: Input Time of Level | C10: 24 | I10: =(B13/C4)*EXP((C9-C7*C10)/C4) -> 90.55400328
B11: Newton Raphson Method | D11: 1st dervivative or Change in Y/Change in X | I11: value of lambert W equation | J11: value of lambert w equation | K11: x of lambert equation | W11: Newton Raphson Method Cp=C0e^(-kt) | Y11: Slope
A12: Cold (initial then set as next old) | B12: C initial(Dose/Vd)=Co | C12: Fc=Co-C+Km*ln(Co) -Km*ln(C)-(Vmax/Vd)*time=0 | D12: F'C=-1-Km/C | E12: Fc/F'C | F12: Cnew | H12: Goal Seeker or solver of Explicit Equation | I12: =(1+0.4586887)*LN((6*I10)/(5*LN((12/5)*(I10/(LN(1+(12/15)*I10))))))-0.4586887*LN((2*I10)/(LN(1+2*I10))) -> 3.216538933 | J12: =1.4586887*LN(1.2*K12/(LN(2.4*K12/(LN(1+2.4*K12)))))-0.4586887*LN(2*K12/LN(1+2*K12)) -> 3.303076497 | K12: =(B13/C4)*EXP((B13-C7*C10)/C4) -> 90.55400328 | V12: Cold | W12: C initial(Dose/Vd)=Co | X12: Fc=Co*Exp(-k*time) | Y12: F'C=-c*k*exp((-k*Time) | Z12: Fc/F'C | AA12: Cnew | AB12: abs New-old
A13: 1e-10 | B13: =C9 -> 21.97802198 | C13: =$B$13-A13+$C$4*LN($B$13) -$C$4*LN(A13)-$C$7*$C$10 -> 115.6723667 | D13: =-1-$C$4/A13 -> -40000000001 | E13: =C13/D13 -> -2.891809168e-09 | F13: =A13-E13 -> 2.991809168e-09 | H13: =B13-H14+C4*LN(B13)-C4*LN(H14)-C7*C10 -> -8.07692447 | I13: =C4*I12 -> 12.86615573 | J13: final value | U13: Initial | V13: 25 | W13: 13.3 | X13: =($W$13*EXP(-0.1*V13)) -> 1.091730482 | Y13: =(-0.1*$W$13)*EXP(-0.1*V13) -> -0.1091730482 | Z13: =X13/Y13 -> -10 | AA13: =V13-Z13 -> 35 | AB13: =AA13-V13 -> 10
A14: =F13 -> 2.991809168e-09 | C14: =$B$13-A14+$C$4*LN($B$13) -$C$4*LN(A14)-$C$7*$C$10 -> 102.0785133 | D14: =-1-$C$4/A14 -> -1336983670 | E14: =C14/D14 -> -7.634985791e-08 | F14: =A14-E14 -> 7.934166708e-08 | H14: 19.71946302 | J14: =C4*J12 -> 13.21230599 | V14: =AA13 -> 35 | X14: =($W$13*EXP(-0.1*V14)) -> 0.4016251995 | Y14: =(-0.1*$W$13)*EXP(-0.1*V14) -> -0.04016251995 | Z14: =X14/Y14 -> -10 | AA14: =V14-Z14 -> 45 | AB14: =AA14-V14 -> 10
A15: =F14 -> 7.934166708e-08 | C15: =$B$13-A15+$C$4*LN($B$13) -$C$4*LN(A15)-$C$7*$C$10 -> 88.96697258 | D15: -50414873.13 | E15: =C15/D15 -> -1.764696945e-06 | F15: =A15-E15 -> 1.844038612e-06 | V15: =AA14 -> 45 | X15: 0.147749654 | Y15: -0.0147749654 | Z15: -10 | AA15: 55 | AB15: 10
A16: 1.844038612e-06 | C16: 76.38317115 | D16: -2169152.977 | E16: -3.521336299e-05 | F16: 3.70574016e-05 | V16: 55 | X16: 0.05435406013 | Y16: -0.005435406013 | Z16: -10 | AA16: 65 | AB16: 10
A17: 3.70574016e-05 | C17: 64.38109577 | D17: -107941.6496 | E17: -0.0005964435048 | F17: 0.0006335009064 | H17: Mathematical Modeling of Pharmacokinetic Data David WABourne p 39 | V17: 65 | X17: 0.01999574127 | Y17: -0.001999574127 | Z17: -10 | AA17: 75 | AB17: 10
A18: 0.0006335009064 | C18: 53.02532603 | D18: -6315.118827 | E18: -0.008396568217 | F18: 0.009030069124 | H18: Excel for Scientists and Engineers EJ Billo p154 | V18: 75 | X18: 0.007356022123 | Y18: -0.0007356022123 | Z18: -10 | AA18: 85 | AB18: 10
A19: 0.009030069124 | C19: 42.38871398 | D19: -443.964494 | E19: -0.09547771174 | F19: 0.1045077809 | V19: 85 | X19: 0.002706129308 | Y19: -0.0002706129308 | Z19: -10 | AA19: 95 | AB19: 10
A20: 0.1045077809 | C20: 32.49843025 | D20: -39.27466211 | E20: -0.8274655594 | F20: 0.9319733402 | V20: 95 | X20: 0.0009955293375 | Y20: -9.955293375e-05 | Z20: -10 | AA20: 105 | AB20: 10
A21: 0.9319733402 | C21: 22.91879396 | D21: -5.291968265 | E21: -4.330863832 | F21: 5.262837172 | V21: 105 | X21: 0.0003662347764 | Y21: -3.662347764e-05 | Z21: -10 | AA21: 115 | AB21: 10
A22: 5.262837172 | C22: 11.66344478 | D22: -1.760046315 | E22: -6.626782873 | F22: 11.88962005 | V22: 115 | X22: 0.0001347302449 | Y22: -1.347302449e-05 | Z22: -10 | AA22: 125 | AB22: 10
A23: 11.88962005 | C23: 1.776679957 | D23: -1.336427908 | E23: -1.329424465 | F23: 13.21904451 | V23: 125 | X23: 4.956448719e-05 | Y23: -4.956448719e-06 | Z23: -10 | AA23: 135 | AB23: 10
A24: 13.21904451 | C24: 0.0232842863 | D24: -1.302593731 | E24: -0.01787532501 | F24: 13.23691984 | V24: 135 | X24: 1.823375585e-05 | Y24: -1.823375585e-06 | Z24: -10 | AA24: 145 | AB24: 10
A25: 13.23691984 | C25: 3.653814259e-06 | D25: -1.302185104 | E25: -2.805910041e-06 | F25: 13.23692264 | V25: 145 | X25: 6.707823912e-06 | Y25: -6.707823912e-07 | Z25: -10 | AA25: 155 | AB25: 10
A26: 13.23692264 | C26: 9.059419881e-14 | D26: -1.30218504 | E26: -6.957091044e-14 | F26: 13.23692264 | V26: 155 | X26: 2.467670512e-06 | Y26: -2.467670512e-07 | Z26: -10 | AA26: 165 | AB26: 10
A27: 13.23692264 | C27: 0 | D27: -1.30218504 | E27: 0 | F27: 13.23692264 | V27: 165 | X27: 9.078052491e-07 | Y27: -9.078052491e-08 | Z27: -10 | AA27: 175 | AB27: 10
A28: 13.23692264 | C28: 0 | D28: -1.30218504 | E28: 0 | F28: 13.23692264 | V28: 175 | X28: 3.339628877e-07 | Y28: -3.339628877e-08 | Z28: -10 | AA28: 185 | AB28: 10
A29: 13.23692264 | C29: 0 | D29: -1.30218504 | E29: 0 | F29: 13.23692264 | V29: 185 | X29: 1.228580805e-07 | Y29: -1.228580805e-08 | Z29: -10 | AA29: 195 | AB29: 10
A30: 13.23692264 | C30: 0 | D30: -1.30218504 | E30: 0 | F30: 13.23692264 | V30: 195 | X30: 4.5196962e-08 | Y30: -4.5196962e-09 | Z30: -10 | AA30: 205 | AB30: 10
A31: 13.23692264 | C31: 0 | D31: -1.30218504 | E31: 0 | F31: 13.23692264 | V31: 205 | X31: 1.662703312e-08 | Y31: -1.662703312e-09 | Z31: -10 | AA31: 215 | AB31: 10
V32: 215 | X32: 6.116743654e-09 | Y32: -6.116743654e-10 | Z32: -10 | AA32: 225 | AB32: 10
V33: 225 | X33: 2.250224237e-09 | Y33: -2.250224237e-10 | Z33: -10 | AA33: 235 | AB33: 10
F34: Dose | V34: 235 | X34: 8.278112348e-10 | Y34: -8.278112348e-11 | Z34: -10 | AA34: 245 | AB34: 10
D35: Co | E35: 0 | V35: 245 | X35: 3.045347345e-10 | Y35: -3.045347345e-11 | Z35: -10 | AA35: 255 | AB35: 10
D36: Time | E36: 2023-07-01T06:00:00 | U36: X | V36: 255 | X36: 1.120320679e-10 | Y36: -1.120320679e-11 | Z36: -10 | AA36: 265 | AB36: 10
V37: 265 | X37: 4.121429455e-11 | Y37: -4.121429455e-12 | Z37: -10 | AA37: 275 | AB37: 10
B38: linest | D38: Time | E38: Cp | F38: 1/Cp | V38: 275 | X38: 1.516189165e-11 | Y38: -1.516189165e-12 | Z38: -10 | AA38: 285 | AB38: 10
B39: =LINEST(E39:E63,D39:D63) -> -0.3645794147 | C39: 21.91605303 | D39: 0 | E39: 21.97802198 | F39: =1/E39 -> 0.0455 | V39: 285 | X39: 5.577748226e-12 | Y39: -5.577748226e-13 | Z39: -10 | AA39: 295 | AB39: 10
B40: slope=0.632*Co*(Vm/v)/(km+0.632*Co) | D40: 1 | E40: 21.59890531 | F40: =1/E40 -> 0.04629864272 | V40: 295 | X40: 2.0519389e-12 | Y40: -2.0519389e-13 | Z40: -10 | AA40: 305 | AB40: 10
B41: =0.632*B13*C7/(C4+0.632*B13) -> 0.3483903484 | D41: 2 | E41: 21.22082571 | F41: 0.04712351977 | V41: 305 | X41: 7.548661359e-13 | Y41: -7.548661359e-14 | Z41: -10 | AA41: 315 | AB41: =AA41-V41 -> 10
D42: 3 | E42: 20.84381156 | F42: 0.04797587031 | V42: 315 | X42: 2.776997322e-13 | Y42: -2.776997322e-14 | Z42: -10 | AA42: 325 | AB42: 10
D43: 4 | E43: 20.46789228 | F43: 0.04885700912 | V43: 325 | X43: 1.021600223e-13 | Y43: -1.021600223e-14 | Z43: -10 | AA43: 335 | AB43: 10
D44: 5 | E44: 20.09309846 | F44: 0.04976833224 | V44: 335 | X44: 3.758257192e-14 | Y44: -3.758257192e-15 | Z44: -10 | AA44: 345 | AB44: 10
D45: 6 | E45: 19.71946186 | F45: 0.05071132301 | V45: 345 | X45: 1.382585556e-14 | Y45: -1.382585556e-15 | Z45: -10 | AA45: 355 | AB45: 10
D46: 7 | E46: 19.34701547 | F46: 0.0516875588 | V46: 355 | X46: 5.086248015e-15 | Y46: -5.086248015e-16 | Z46: -10 | AA46: 365 | AB46: 10
D47: 8 | E47: 18.97579361 | F47: 0.05269871818 | V47: 365 | X47: 1.871126078e-15 | Y47: -1.871126078e-16 | Z47: -10 | AA47: 375 | AB47: 10
D48: 9 | E48: 18.60583194 | F48: 0.05374658887 | V48: 375 | X48: 6.883488158e-16 | Y48: -6.883488158e-17 | Z48: -10 | AA48: 385 | AB48: 10
D49: 10 | E49: 18.23716756 | F49: 0.05483307628 | V49: 385 | X49: 2.532293777e-16 | Y49: -2.532293777e-17 | Z49: -10 | AA49: 395 | AB49: 10
D50: 11 | E50: 17.86983906 | F50: 0.05596021299 | V50: 395 | X50: 9.315788195e-17 | Y50: -9.315788195e-18 | Z50: -10 | AA50: 405 | AB50: 10
D51: 12 | E51: 17.50388661 | F51: 0.05713016898 | V51: 405 | X51: 3.427086955e-17 | Y51: -3.427086955e-18 | Z51: -10 | AA51: 415 | AB51: 10
D52: 13 | E52: 17.13935203 | F52: 0.05834526291 | V52: 415 | X52: 1.260754834e-17 | Y52: -1.260754834e-18 | Z52: -10 | AA52: 425 | AB52: 10
D53: 14 | E53: 16.77627885 | F53: 0.0596079744 | V53: 425 | X53: 4.638057838e-18 | Y53: -4.638057838e-19 | Z53: -10 | AA53: 435 | AB53: 10
D54: 15 | E54: 16.41471243 | F54: 0.0609209576
D55: 16 | E55: 16.05470004 | F55: 0.06228705599
D56: 17 | E56: 15.69629091 | F56: 0.06370931868 | V56: b | X56: c | Y56: d | Z56: e | AA56: f
D57: 18 | E57: 15.33953641 | F57: 0.06519101836 | V57: X1 | W57: Newton Raphson Method Cp=C0e^(-kt), p157 Excel for Scientist and Eng EJBillo
D58: 19 | E58: 14.98449008 | F58: 0.066735671 | V58: Cold | W58: C initial(Dose/Vd)=Co | X58: Y 1, Fc=Co*Exp(-k*time) | Y58: X2 | Z58: Y2 | AA58: m | AB58: new x | AD58: Time=Ln(cmax/cmin)/Time change
D59: 20 | E59: 14.63120776 | F59: 0.06834705765 | V59: 175 | W59: 13.3 | X59: =($W$59*EXP(-0.1*V59)) -> 3.339628877e-07 | Y59: =V59+0.0000001*V59 -> 175.0000175 | Z59: =(W59*EXP(-0.1*Y59)) -> 3.339623033e-07 | AA59: =(Z59-X59)/(Y59-V59) -> -3.339625958e-08 | AB59: =V59-X59/AA59 -> 185.0000087 | AD59: =LN(W59/0.0000001)/0.1 -> 187.0585969
D60: 21 | E60: 14.27974771 | F60: 0.07002924844 | V60: =AB59 -> 185.0000087 | X60: =($W$59*EXP(-0.1*V60)) -> 1.228579731e-07 | Y60: =V60+0.0000001*V60 -> 185.0000272 | Z60: =(W60*EXP(-0.1*Y60)) -> 0 | AA60: =(Z60-X60)/(Y60-V60) -> -0.00664097121 | AB60: 185.0000272
D61: 22 | E61: 13.93017074 | F61: 0.07178662909 | V61: =AB60 -> 185.0000272 | X61: 1.228577458e-07 | Y61: 185.0000457 | Z61: 0 | AA61: -0.006640958261 | AB61: 185.0000457
D62: 23 | E62: 13.5825403 | F62: 0.07362393026 | V62: 185.0000457 | X62: 1.228575185e-07 | Y62: 185.0000642 | Z62: 0 | AA62: -0.006640945302 | AB62: 185.0000642
D63: 24 | E63: 13.23692264 | F63: 0.07554626004 | V63: 185.0000642 | X63: 1.228572912e-07 | Y63: 185.0000827 | Z63: 0 | AA63: -0.006640932353 | AB63: 185.0000827
D64: 36 | E64: 9.275039966 | F64: 0.107816247 | V64: 185.0000827 | X64: 1.22857064e-07 | Y64: 185.0001012 | Z64: 0 | AA64: -0.006640919404 | AB64: 185.0001012
D65: 48 | E65: 5.781251515 | F65: 0.1729729277 | V65: 185.0001012 | X65: 1.228568367e-07 | Y65: 185.0001197 | Z65: 0 | AA65: -0.006640906455 | AB65: 185.0001197
D66: 72 | E66: 2.637839749 | F66: 0.379098086 | V66: 185.0001197 | X66: 1.228566094e-07 | Y66: 185.0001382 | Z66: 0 | AA66: -0.006640893506 | AB66: 185.0001382
V67: 185.0001382 | X67: 1.228563821e-07 | Y67: 185.0001567 | Z67: 0 | AA67: -0.006640880557 | AB67: 185.0001567
V68: 185.0001567 | X68: 1.228561548e-07 | Y68: 185.0001752 | Z68: 0 | AA68: -0.006640867609 | AB68: 185.0001752
V69: 185.0001752 | X69: 1.228559275e-07 | Y69: 185.0001937 | Z69: 0 | AA69: -0.00664085466 | AB69: 185.0001937
V70: 185.0001937 | X70: 1.228557003e-07 | Y70: 185.0002122 | Z70: 0 | AA70: -0.006640841711 | AB70: 185.0002122
V71: 185.0002122 | X71: 1.22855473e-07 | Y71: 185.0002307 | Z71: 0 | AA71: -0.006640828762 | AB71: 185.0002307
V72: 185.0002307 | X72: 1.228552457e-07 | Y72: 185.0002492 | Z72: 0 | AA72: -0.006640815814 | AB72: 185.0002492
V73: 185.0002492 | X73: 1.228550184e-07 | Y73: 185.0002677 | Z73: 0 | AA73: -0.006640802855 | AB73: 185.0002677
V74: 185.0002677 | X74: 1.228547911e-07 | Y74: 185.0002862 | Z74: 0 | AA74: -0.006640789906 | AB74: 185.0002862
V75: 185.0002862 | X75: 1.228545638e-07 | Y75: 185.0003047 | Z75: 0 | AA75: -0.006640776958 | AB75: 185.0003047
V76: 185.0003047 | X76: 1.228543366e-07 | Y76: 185.0003232 | Z76: 0 | AA76: -0.006640764009 | AB76: 185.0003232
V77: 185.0003232 | X77: 1.228541093e-07 | Y77: 185.0003417 | Z77: 0 | AA77: -0.00664075106 | AB77: 185.0003417
V78: =AB77 -> 185.0003417 | X78: =($W$59*EXP(-0.1*V78)) -> 1.22853882e-07 | Y78: =V78+0.0000001*V78 -> 185.0003602 | Z78: =(W78*EXP(-0.1*Y78)) -> 0 | AA78: =(Z78-X78)/(Y78-V78) -> -0.006640738112 | AB78: =V78-X78/AA78 -> 185.0003602
V79: 185.0003602 | X79: 1.228536547e-07 | Y79: 185.0003787 | Z79: 0 | AA79: -0.006640725163 | AB79: 185.0003787
V80: 185.0003787 | X80: 1.228534274e-07 | Y80: 185.0003972 | Z80: 0 | AA80: -0.006640712215 | AB80: 185.0003972
V81: 185.0003972 | X81: 1.228532002e-07 | Y81: 185.0004157 | Z81: 0 | AA81: -0.006640699266 | AB81: 185.0004157
C82: F(x) | D82: First Derivative of F(x) | V82: 185.0004157 | X82: 1.228529729e-07 | Y82: 185.0004342 | Z82: 0 | AA82: -0.006640686318 | AB82: 185.0004342
A83: initial then estimated next x | C83: 3x^3+2.5*x^2-5x-11=0 | D83: 9X^2+5x-5 | E83: F(x)/F'(x) | F83: new x | V83: 185.0004342 | X83: 1.228527456e-07 | Y83: 185.0004527 | Z83: 0 | AA83: -0.006640673369 | AB83: 185.0004527
A84: -20 | C84: =3*(A84^3)+2.5*(A84^2)-5*A84-11 -> -22911 | D84: =9*(A84^2)+5*A84-5 -> 3495 | E84: =C84/D84 -> -6.555364807 | F84: =A84-E84 -> -13.44463519 | V84: 185.0004527 | X84: 1.228525183e-07 | Y84: 185.0004712 | Z84: 0 | AA84: -0.006640660411 | AB84: 185.0004712
A85: =F84 -> -13.44463519 | C85: =3*(A85^3)+2.5*(A85^2)-5*A85-11 -> -6782.566081 | D85: =9*(A85^2)+5*A85-5 -> 1554.600763 | E85: =C85/D85 -> -4.362898978 | F85: =A85-E85 -> -9.081736215 | V85: 185.0004712 | X85: 1.228522911e-07 | Y85: 185.0004897 | Z85: 0 | AA85: -0.006640647462 | AB85: 185.0004897
A86: =F85 -> -9.081736215 | C86: -2006.524972 | D86: 691.8927131 | E86: -2.900052181 | F86: -6.181684034 | V86: 185.0004897 | X86: 1.228520638e-07 | Y86: 185.0005082 | Z86: 0 | AA86: -0.006640634514 | AB86: 185.0005082
A87: -6.181684034 | C87: -593.2246455 | D87: 308.0105373 | E87: -1.925988152 | F87: -4.255695882 | V87: 185.0005082 | X87: 1.228518365e-07 | Y87: 185.0005267 | Z87: 0 | AA87: -0.006640621566 | AB87: 185.0005267
A88: -4.255695882 | C88: -175.6682053 | D88: 136.7200475 | E88: -1.28487525 | F88: -2.970820632 | V88: 185.0005267 | X88: 1.228516092e-07 | Y88: 185.0005452 | Z88: 0 | AA88: -0.006640608618 | AB88: 185.0005452
A89: -2.970820632 | C89: -52.74084417 | D89: 59.57787387 | E89: -0.8852421334 | F89: -2.085578498
A90: -2.085578498 | C90: -16.91254574 | D90: 23.71884656 | E90: -0.7130425039 | F90: -1.372535994
A91: -1.372535994 | C91: -7.184659005 | D91: 5.09201553 | E91: -1.410965651 | F91: 0.03842965621
A92: 0.03842965621 | C92: -11.18828592 | D92: -4.794560173 | E92: 2.333537492 | F92: -2.295107836
A93: -2.295107836 | C93: -22.62424001 | D93: 30.93214063 | E93: -0.7314152707 | F93: -1.563692565
A94: =F93 -> -1.563692565 | C94: =3*(A94^3)+2.5*(A94^2)-5*A94-11 -> -8.539016706 | D94: =9*(A94^2)+5*A94-5 -> 9.187747123 | E94: =C94/D94 -> -0.9293917858 | F94: =A94-E94 -> -0.6343007795
A95: -0.6343007795 | C95: -7.588261335 | D95: -4.550466587 | E95: 1.667578739 | F95: -2.301879519
A96: -2.301879519 | C96: -22.83453614 | D96: 31.17844627 | E96: -0.7323821059 | F96: -1.569497413
A97: -1.569497413 | C97: -8.592740739 | D97: 9.322412096 | E97: -0.9217293389 | F97: -0.6477680739
A98: -0.6477680739 | C98: -7.527568146 | D98: -4.462409071 | E98: 1.686884377 | F98: -2.334652451
A99: -2.334652451 | C99: -23.876017 | D99: 32.38215634 | E99: -0.7373201694 | F99: -1.597332282
A100: -1.597332282 | C100: -8.861300739 | D100: 9.976572352 | E100: -0.8882109433 | F100: -0.7091213383
A101: -0.7091213383 | C101: -7.267012158 | D101: -4.01992904 | E101: 1.807746377 | F101: -2.516867716
A102: -2.516867716 | C102: -30.40932878 | D102: 39.4272693 | E102: -0.7712765635 | F102: -1.745591152
A103: -1.745591152 | C103: -10.61123509 | D103: 13.69584047 | E103: -0.7747779412 | F103: -0.970813211
A104: -0.970813211 | C104: -6.534649345 | D104: -1.371761439 | E104: 4.763692258 | F104: -5.734505469
A105: -5.734505469 | C105: -465.8460368 | D105: 262.2884494 | E105: -1.776082927 | F105: -3.958422542
A106: =F105 -> -3.958422542 | C106: =3*(A106^3)+2.5*(A106^2)-5*A106-11 -> -138.1099779 | D106: =9*(A106^2)+5*A106-5 -> 116.2298685 | E106: =C106/D106 -> -1.188248594 | F106: =A106-E106 -> -2.770173948
A107: -2.770173948 | C107: -41.73828293 | D107: 50.21390358 | E107: -0.8312096841 | F107: -1.938964264
A108: -1.938964264 | C108: -13.7753105 | D108: 19.14142043 | E108: -0.7196597843 | F108: -1.21930448
A109: -1.21930448 | C109: -6.624951465 | D109: 2.28380833 | E109: -2.900835144 | F109: 1.681530664
A110: 1.681530664 | C110: 1.925022867 | D110: 28.85556169 | E110: 0.06671236858 | F110: 1.614818295
A111: 1.614818295 | C111: 0.07758910927 | D111: 26.54283462 | E111: 0.002923165908 | F111: 1.61189513
A112: 1.61189513 | C112: 0.0001454734449 | D112: 26.44332883 | E112: 5.501328741e-06 | F112: 1.611889628
A113: 1.611889628 | C113: 5.147100524e-10 | D113: 26.4431417 | E113: 1.946478441e-11 | F113: 1.611889628
A114: 1.611889628 | C114: 0 | D114: 26.4431417 | E114: 0 | F114: 1.611889628
A115: 1.611889628 | C115: 0 | D115: 26.4431417 | E115: 0 | F115: 1.611889628
A116: 1.611889628 | C116: 0 | D116: 26.4431417 | E116: 0 | F116: 1.611889628
A117: 1.611889628 | C117: 0 | D117: 26.4431417 | E117: 0 | F117: 1.611889628
A118: 1.611889628 | C118: 0 | D118: 26.4431417 | E118: 0 | F118: 1.611889628
A119: 1.611889628 | C119: 0 | D119: 26.4431417 | E119: 0 | F119: 1.611889628

Sheet Trough Data Fitting
G1: Phenytoin Michaelis Menten (Capacity-Limited) Pharmacokinetics One Compartment Model
B2: Demographic Data Input | G2: Bayesian Data Fitting of Troughs to Calculate Km and Vmax. Vd is not fit as peak levels are not entered or analyzed. | AE2: Sex
B3: Select Age Group (Years) Drop Down Box | C3: > 59 | G3: Dosing with or without a Loading Dose Followed by a Uniform Dose and Frequency | AE3: Male
B4: Input Height (inches) | G4: Marshall Pierce PharmD | AE4: Female
B5: Input Weight (kg) | G5: https://pkineticdrugdosing.com/documents/phenytoin.html
B6: Select Sex (Drop Down Box) | C6: Male | F6: Instructions:
B7: Input Serum Albumin (grams/dL) Normal is 4.4 g/dL | C7: 4.4 | F7: Enter information in the blue fields. Click new patient button to clear prior data.
B8: Select if Hemodialysis Patient (Drop Down Box) | C8: No | F8: Enter the concentration before the first dose and the hours the level drawn before the first dose .
B9: Select Dosage Form Drop Down Box | C9: Capsule | F9: This assumes the patient was on prior therapy. If there was no prior therapy leave the cells blank.
B10: Fraction of Dosage Form That Is Pure Drug | C10: =IF(C9="Capsule",0.92,IF(C9="Injection",0.92,IF(C9="Tablet",1,IF(C9="Suspension",1)))) -> 0.92 | F10: Enter know troughs. The troughs below a dose are the trough just before the dose. Troughs should be drawn just before a dose.
B11: Ideal Body Weight (kg) calculated | C11: =IF(C6="Male", (C4-60)*2.3+50,(C4-60)*2.3+45.5) -> -88 | F11: If extended release phenytoin capsules are being administered divide the total daily dose into 3 to 4 maintenance doses and set the Tau accordingly.
B12: Ideal Body Weight Used (kg) | C12: =IF(C5<C11,C5,C11) -> -88
B13: Population Mean Parameters | D13: Fit Parameters | F13: Data Fitting:
B14: Calculated Vd (Liters) | C14: =IF(C5>C11,0.65*C12+1.33*(C5-C12),C5*0.65) -> 59.84 | D14: =C14 -> 59.84 | F14: Click the fit data button.
B15: Km (mg/liter) population mean | C15: =VLOOKUP(C3,lookuparray!A2:F8,5,FALSE) -> 5.8 | D15: =C15 -> 5.8 | F15: All doses are modeled as bolus doses. If SR or extended release products are used divide the total daily dose into 3 to 4 doses and set the Tau accordingly.
B16: Vmax (mg/kg/day) population mean | C16: =VLOOKUP(C3,lookuparray!A2:F8,4,FALSE) -> 7 | D16: =D17/C12 -> 7 | F16: Fitting of levels after a loading dose.: Enter the loading dose, set Tau to a frequeny that repeats at time(s) of the post dose level(s), and set maintenance dose to 0.
B17: Vmax Calculated (mg/day) | C17: =C16*C12 -> -616 | D17: =D18*24 -> -616 | F17: If prior therapy has been given you must have a pre Loading Dose level. You can then fit the parameters after a loading dose. Draw levels 6 and 12 hours post dose for data fitting.
B18: Vmax Calculated (mg/hours) | C18: =C16*C12/24 -> -25.66666667 | D18: =D19*D14 -> -25.66666667 | F18: After fitting levels enter a maintenance dose and adjust Tau as needed. Order follow up levels ever 2 to 3 days.
B19: Vmax Calculated (mg/hour/liter) | C19: =C16*C12/(24*C14) -> -0.4289215686 | D19: =C19 -> -0.4289215686
B20: Input Loaing Dose(mg) or enter the Maintenance Dose if no LD is given. | F20: Please review the information at the link above for a better understanding of phenytoin kinetics.
B21: Cp Calculated Post Loading Dose(mg/L) | C21: =C20*C10/C14 -> 0
B22: Input Tau (Hours) | F22: The graphic below demonstrates predicted levels using population parameters before levels are fit and patient specific after levels are fit.
B23: Input Maintenance Dose (mg) | D23: =IF(OR(D25<=0,D31>20),"The dose it too high and is above or equal to Vmax. Reduce the dose or increase the interval.","") -> 
B24: Population Based Dosing | D24: Individualized Dosing
A25: hide | B25: Predicted Cssavg Calculated (mg/L) | C25: =(C15*$C23*$C10/$C22)/(C18-$C23*$C10/$C22) ->  | D25: =(D15*$C23*$C10/$C22)/(D18-$C23*$C10/$C22) -> 
B26: Accumulation | C26: =$C$23*$C$10/(C$14*(1-EXP(($C$23*$C$10-C$19*C$14*$C$22)/(C$15*C$14)))) ->  | D26: =$C$23*$C$10/(D$14*(1-EXP(($C$23*$C$10-D$19*D$14*$C$22)/(D$15*D$14)))) -> 
B27: X of lamber equation calculated | C27: =(C26/C$15)*EXP((C26-C$19*$C$22)/C$15) ->  | D27: =(D26/D$15)*EXP((D26-D$19*$C$22)/D$15) -> 
B28: Wo of x calculated | C28: =1.4586887*LN(1.2*C27/(LN(2.4*C27/(LN(1+2.4*C27)))))-0.4586887*LN(2*C27/(LN(1+2*C27))) ->  | D28: =1.4586887*LN(1.2*D27/(LN(2.4*D27/(LN(1+2.4*D27)))))-0.4586887*LN(2*D27/(LN(1+2*D27))) -> 
B29: Predicted Css trough calculated (mg/L) | C29: =C$15*C28 ->  | D29: =D$15*D28 -> 
B30: Predicted Css max calculated (mg/L) | C30: =C29+$C$23*$C$10/C$14 ->  | D30: =D29+$C$23*$C$10/D$14 -> 
B31: Predicted Caverage calculated (mg/L) | C31: =(C29+C30)/2 ->  | D31: =(D29+D30)/2 -> 
B32: Cp Average Steady State Equivalent to Normal Protein Binding. This row applies if low albumin or dialysis. (mg/L) | C32: =IF(C31="","",IF($C8="No",C31/(0.9*($C$7/4.4)+0.1),C31/(0.9*0.48*($C$7/4.4)+0.1))) ->  | D32: =IF(D31="","",IF($C8="No",D31/(0.9*($C$7/4.4)+0.1),D31/(0.9*0.48*($C$7/4.4)+0.1))) -> 
B33: Cp Average Steady State Equivalent to Normal Protein Binding. This row applies if free levels are entered below. (mg/L) | C33: =IF(ISNUMBER($C36),$C36/0.1*C31,"") ->  | D33: =IF(ISNUMBER($C36),$C36/0.1*D31,"") -> 
B34: Input Most Recent Free level if drawn (mg/L)
B35: Input Total Level Assoociated with Free Level (mg/L)
B36: Free Fraction Calculated (Normal free faction is 0.1) | C36: =IF(AND(C34<>"",C35<>""),C34/C35,"") -> 
B37: Time to 90% of Steady State (Days) from Start of Therapy. Assumes No Loading Dose and No Drug is on Board at Start of Therapy. | C37: =(C15*C14/(C18-$C23*$C10/$C22)^2)*(2.3*C18-0.9*$C23*$C10/$C22)/24 ->  | D37: =(D15*D14/(D18-$C23*$C10/$C22)^2)*(2.3*D18-0.9*$C23*$C10/$C22)/24 -> 
B40: Input Date/Time of First Dose month/day/year (xx/xx/xx) | E40: =D40+$C22/24 -> 00:00:00 | F40: 00:00:00 | G40: 00:00:00 | H40: 00:00:00 | I40: 00:00:00 | J40: 00:00:00 | K40: 00:00:00 | L40: 00:00:00 | M40: 00:00:00 | N40: 00:00:00 | O40: 00:00:00 | P40: 00:00:00 | Q40: 00:00:00 | R40: 00:00:00 | S40: 00:00:00 | T40: 00:00:00 | U40: 00:00:00 | V40: 00:00:00 | W40: 00:00:00 | X40: 00:00:00 | Y40: 00:00:00 | Z40: 00:00:00 | AA40: 00:00:00 | AB40: 00:00:00 | AC40: 00:00:00 | AD40: 00:00:00 | AE40: 00:00:00 | AF40: 00:00:00 | AG40: 00:00:00 | AH40: 00:00:00 | AI40: 00:00:00 | AJ40: 00:00:00 | AK40: =AJ40+$C22/24 -> 00:00:00 | AL40: 00:00:00 | AM40: 00:00:00 | AN40: 00:00:00 | AO40: 00:00:00 | AP40: 00:00:00 | AQ40: 00:00:00 | AR40: 00:00:00 | AS40: 00:00:00 | AT40: 00:00:00 | AU40: 00:00:00 | AV40: 00:00:00 | AW40: 00:00:00 | AX40: 00:00:00 | AY40: 00:00:00 | AZ40: 00:00:00 | BA40: 00:00:00 | BB40: 00:00:00 | BC40: 00:00:00 | BD40: 00:00:00 | BE40: 00:00:00 | BF40: 00:00:00 | BG40: 00:00:00 | BH40: 00:00:00 | BI40: 00:00:00 | BJ40: 00:00:00 | BK40: 00:00:00 | BL40: 00:00:00 | BM40: 00:00:00 | BN40: 00:00:00 | BO40: 00:00:00 | BP40: 00:00:00 | BQ40: =BP40+$C22/24 -> 00:00:00 | BR40: 00:00:00 | BS40: 00:00:00 | BT40: 00:00:00 | BU40: 00:00:00 | BV40: 00:00:00 | BW40: 00:00:00 | BX40: 00:00:00 | BY40: 00:00:00 | BZ40: 00:00:00 | CA40: 00:00:00 | CB40: 00:00:00 | CC40: 00:00:00 | CD40: 00:00:00 | CE40: 00:00:00 | CF40: 00:00:00 | CG40: 00:00:00 | CH40: 00:00:00 | CI40: 00:00:00 | CJ40: 00:00:00 | CK40: 00:00:00 | CL40: 00:00:00 | CM40: 00:00:00 | CN40: 00:00:00 | CO40: 00:00:00 | CP40: 00:00:00 | CQ40: 00:00:00 | CR40: 00:00:00 | CS40: 00:00:00 | CT40: 00:00:00 | CU40: 00:00:00 | CV40: 00:00:00 | CW40: =CV40+$C22/24 -> 00:00:00 | CX40: 00:00:00 | CY40: 00:00:00 | CZ40: 00:00:00 | DA40: 00:00:00 | DB40: 00:00:00 | DC40: 00:00:00 | DD40: 00:00:00 | DE40: 00:00:00 | DF40: 00:00:00 | DG40: 00:00:00 | DH40: 00:00:00 | DI40: 00:00:00 | DJ40: 00:00:00 | DK40: 00:00:00 | DL40: 00:00:00 | DM40: 00:00:00 | DN40: 00:00:00 | DO40: 00:00:00 | DP40: 00:00:00 | DQ40: 00:00:00 | DR40: 00:00:00 | DS40: 00:00:00 | DT40: 00:00:00 | DU40: 00:00:00 | DV40: 00:00:00 | DW40: 00:00:00 | DX40: 00:00:00 | DY40: 00:00:00 | DZ40: 00:00:00 | EA40: 00:00:00 | EB40: 00:00:00 | EC40: =EB40+$C22/24 -> 00:00:00 | ED40: 00:00:00 | EE40: 00:00:00 | EF40: 00:00:00 | EG40: 00:00:00 | EH40: 00:00:00 | EI40: 00:00:00 | EJ40: 00:00:00
B41: Time absolute (Hours) | D41: 0 | E41: =$C22+D41 -> 0 | F41: 0 | G41: 0 | H41: 0 | I41: 0 | J41: 0 | K41: 0 | L41: 0 | M41: 0 | N41: 0 | O41: 0 | P41: 0 | Q41: 0 | R41: 0 | S41: 0 | T41: 0 | U41: 0 | V41: 0 | W41: 0 | X41: 0 | Y41: 0 | Z41: 0 | AA41: 0 | AB41: 0 | AC41: 0 | AD41: 0 | AE41: 0 | AF41: 0 | AG41: 0 | AH41: 0 | AI41: 0 | AJ41: 0 | AK41: =$C22+AJ41 -> 0 | AL41: 0 | AM41: 0 | AN41: 0 | AO41: 0 | AP41: 0 | AQ41: 0 | AR41: 0 | AS41: 0 | AT41: 0 | AU41: 0 | AV41: 0 | AW41: 0 | AX41: 0 | AY41: 0 | AZ41: 0 | BA41: 0 | BB41: 0 | BC41: 0 | BD41: 0 | BE41: 0 | BF41: 0 | BG41: 0 | BH41: 0 | BI41: 0 | BJ41: 0 | BK41: 0 | BL41: 0 | BM41: 0 | BN41: 0 | BO41: 0 | BP41: 0 | BQ41: =$C22+BP41 -> 0 | BR41: 0 | BS41: 0 | BT41: 0 | BU41: 0 | BV41: 0 | BW41: 0 | BX41: 0 | BY41: 0 | BZ41: 0 | CA41: 0 | CB41: 0 | CC41: 0 | CD41: 0 | CE41: 0 | CF41: 0 | CG41: 0 | CH41: 0 | CI41: 0 | CJ41: 0 | CK41: 0 | CL41: 0 | CM41: 0 | CN41: 0 | CO41: 0 | CP41: 0 | CQ41: 0 | CR41: 0 | CS41: 0 | CT41: 0 | CU41: 0 | CV41: 0 | CW41: =$C22+CV41 -> 0 | CX41: 0 | CY41: 0 | CZ41: 0 | DA41: 0 | DB41: 0 | DC41: 0 | DD41: 0 | DE41: 0 | DF41: 0 | DG41: 0 | DH41: 0 | DI41: 0 | DJ41: 0 | DK41: 0 | DL41: 0 | DM41: 0 | DN41: 0 | DO41: 0 | DP41: 0 | DQ41: 0 | DR41: 0 | DS41: 0 | DT41: 0 | DU41: 0 | DV41: 0 | DW41: 0 | DX41: 0 | DY41: 0 | DZ41: 0 | EA41: 0 | EB41: 0 | EC41: =$C22+EB41 -> 0 | ED41: 0 | EE41: 0 | EF41: 0 | EG41: 0 | EH41: 0 | EI41: 0 | EJ41: 0 | EK41: 0
C42: Pre Dose 1 | D42: Dose 1 | E42: Dose 2 | F42: Dose 3 | G42: Dose 4 | H42: Dose 5 | I42: Dose 6 | J42: Dose 7 | K42: Dose 8 | L42: Dose 9 | M42: Dose 10 | N42: Dose 11 | O42: Dose 12 | P42: Dose 13 | Q42: Dose 14 | R42: Dose 15 | S42: Dose 16 | T42: Dose 17 | U42: Dose 18 | V42: Dose 19 | W42: Dose 20 | X42: Dose 21 | Y42: Dose 22 | Z42: Dose 23 | AA42: Dose 24 | AB42: Dose 25 | AC42: Dose 26 | AD42: Dose 27 | AE42: Dose 28 | AF42: Dose 29 | AG42: Dose 30 | AH42: Dose 31 | AI42: Dose 32 | AJ42: Dose 33 | AK42: Dose 34 | AL42: Dose 35 | AM42: Dose 36 | AN42: Dose 37 | AO42: Dose 38 | AP42: Dose 39 | AQ42: Dose 40 | AR42: Dose 41 | AS42: Dose 42 | AT42: Dose 43 | AU42: Dose 44 | AV42: Dose 45 | AW42: Dose 46 | AX42: Dose 47 | AY42: Dose 48 | AZ42: Dose 49 | BA42: Dose 50 | BB42: Dose 51 | BC42: Dose 52 | BD42: Dose 53 | BE42: Dose 54 | BF42: Dose 55 | BG42: Dose 56 | BH42: Dose 57 | BI42: Dose 58 | BJ42: Dose 59 | BK42: Dose 60 | BL42: Dose 61 | BM42: Dose 62 | BN42: Dose 63 | BO42: Dose 64 | BP42: Dose 65 | BQ42: Dose 66 | BR42: Dose 67 | BS42: Dose 68 | BT42: Dose 69 | BU42: Dose 70 | BV42: Dose 71 | BW42: Dose 72 | BX42: Dose 73 | BY42: Dose 74 | BZ42: Dose 75 | CA42: Dose 76 | CB42: Dose 77 | CC42: Dose 78 | CD42: Dose 79 | CE42: Dose 80 | CF42: Dose 81 | CG42: Dose 82 | CH42: Dose 83 | CI42: Dose 84 | CJ42: Dose 85 | CK42: Dose 86 | CL42: Dose 87 | CM42: Dose 88 | CN42: Dose 89 | CO42: Dose 90 | CP42: Dose 91 | CQ42: Dose 92 | CR42: Dose 93 | CS42: Dose 94 | CT42: Dose 95 | CU42: Dose 96 | CV42: Dose 97 | CW42: Dose 98 | CX42: Dose 99 | CY42: Dose 100 | CZ42: Dose 101 | DA42: Dose 102 | DB42: Dose 103 | DC42: Dose 104 | DD42: Dose 105 | DE42: Dose 106 | DF42: Dose 107 | DG42: Dose 108 | DH42: Dose 109 | DI42: Dose 110 | DJ42: Dose 111 | DK42: Dose 112 | DL42: Dose 113 | DM42: Dose 114 | DN42: Dose 115 | DO42: Dose 116 | DP42: Dose 117 | DQ42: Dose 118 | DR42: Dose 119 | DS42: Dose 120 | DT42: Dose 121 | DU42: Dose 122 | DV42: Dose 123 | DW42: Dose 124 | DX42: Dose 125 | DY42: Dose 126 | DZ42: Dose 127 | EA42: Dose 128 | EB42: Dose 129 | EC42: Dose 130 | ED42: Dose 131 | EE42: Dose 132 | EF42: Dose 133 | EG42: Dose 134 | EH42: Dose 135 | EI42: Dose 136 | EJ42: Dose 137
B43: x in lambert equation | C43: =C50/$D15*EXP((C50-$D19*C51)/$D15) -> 0 | D43: =D46/$D15*EXP((C21-$D19*$C22)/$D15) -> 0 | E43: =E46/$D15*EXP((E46-$D19*$C22)/$D15) ->  | AK43: =AK46/$D15*EXP((AK46-$D19*$C22)/$D15) ->  | BQ43: =BQ46/$D15*EXP((BQ46-$D19*$C22)/$D15) ->  | CW43: =CW46/$D15*EXP((CW46-$D19*$C22)/$D15) ->  | EC43: =EC46/$D15*EXP((EC46-$D19*$C22)/$D15) -> 
B44: Wo of x | C44: =IF(C50>0,1.4586887*LN(1.2*C43/(LN(2.4*C43/(LN(1+2.4*C43)))))-0.4586887*LN(2*C43/(LN(1+2*C43))),"") ->  | D44: =1.4586887*LN(1.2*D43/(LN(2.4*D43/(LN(1+2.4*D43)))))-0.4586887*LN(2*D43/(LN(1+2*D43))) ->  | E44: =1.4586887*LN(1.2*E43/(LN(2.4*E43/(LN(1+2.4*E43)))))-0.4586887*LN(2*E43/(LN(1+2*E43))) ->  | F44: =1.4586887*LN(1.2*F43/(LN(2.4*F43/(LN(1+2.4*F43)))))-0.4586887*LN(2*F43/(LN(1+2*F43))) ->  | Q44: =1.4586887*LN(1.2*Q43/(LN(2.4*Q43/(LN(1+2.4*Q43)))))-0.4586887*LN(2*Q43/(LN(1+2*Q43))) ->  | R44: =1.4586887*LN(1.2*R43/(LN(2.4*R43/(LN(1+2.4*R43)))))-0.4586887*LN(2*R43/(LN(1+2*R43))) ->  | S44: =1.4586887*LN(1.2*S43/(LN(2.4*S43/(LN(1+2.4*S43)))))-0.4586887*LN(2*S43/(LN(1+2*S43))) ->  | T44: =1.4586887*LN(1.2*T43/(LN(2.4*T43/(LN(1+2.4*T43)))))-0.4586887*LN(2*T43/(LN(1+2*T43))) ->  | U44: =1.4586887*LN(1.2*U43/(LN(2.4*U43/(LN(1+2.4*U43)))))-0.4586887*LN(2*U43/(LN(1+2*U43))) ->  | V44: =1.4586887*LN(1.2*V43/(LN(2.4*V43/(LN(1+2.4*V43)))))-0.4586887*LN(2*V43/(LN(1+2*V43))) ->  | W44: =1.4586887*LN(1.2*W43/(LN(2.4*W43/(LN(1+2.4*W43)))))-0.4586887*LN(2*W43/(LN(1+2*W43))) ->  | X44: =1.4586887*LN(1.2*X43/(LN(2.4*X43/(LN(1+2.4*X43)))))-0.4586887*LN(2*X43/(LN(1+2*X43))) ->  | Y44: =1.4586887*LN(1.2*Y43/(LN(2.4*Y43/(LN(1+2.4*Y43)))))-0.4586887*LN(2*Y43/(LN(1+2*Y43))) ->  | Z44: =1.4586887*LN(1.2*Z43/(LN(2.4*Z43/(LN(1+2.4*Z43)))))-0.4586887*LN(2*Z43/(LN(1+2*Z43))) ->  | AA44: =1.4586887*LN(1.2*AA43/(LN(2.4*AA43/(LN(1+2.4*AA43)))))-0.4586887*LN(2*AA43/(LN(1+2*AA43))) ->  | AB44: =1.4586887*LN(1.2*AB43/(LN(2.4*AB43/(LN(1+2.4*AB43)))))-0.4586887*LN(2*AB43/(LN(1+2*AB43))) ->  | AC44: =1.4586887*LN(1.2*AC43/(LN(2.4*AC43/(LN(1+2.4*AC43)))))-0.4586887*LN(2*AC43/(LN(1+2*AC43))) ->  | AD44: =1.4586887*LN(1.2*AD43/(LN(2.4*AD43/(LN(1+2.4*AD43)))))-0.4586887*LN(2*AD43/(LN(1+2*AD43))) ->  | AE44: =1.4586887*LN(1.2*AE43/(LN(2.4*AE43/(LN(1+2.4*AE43)))))-0.4586887*LN(2*AE43/(LN(1+2*AE43))) ->  | AF44: =1.4586887*LN(1.2*AF43/(LN(2.4*AF43/(LN(1+2.4*AF43)))))-0.4586887*LN(2*AF43/(LN(1+2*AF43))) ->  | AG44: =1.4586887*LN(1.2*AG43/(LN(2.4*AG43/(LN(1+2.4*AG43)))))-0.4586887*LN(2*AG43/(LN(1+2*AG43))) ->  | AH44: =1.4586887*LN(1.2*AH43/(LN(2.4*AH43/(LN(1+2.4*AH43)))))-0.4586887*LN(2*AH43/(LN(1+2*AH43))) ->  | AI44: =1.4586887*LN(1.2*AI43/(LN(2.4*AI43/(LN(1+2.4*AI43)))))-0.4586887*LN(2*AI43/(LN(1+2*AI43))) ->  | AJ44: =1.4586887*LN(1.2*AJ43/(LN(2.4*AJ43/(LN(1+2.4*AJ43)))))-0.4586887*LN(2*AJ43/(LN(1+2*AJ43))) ->  | AK44: =1.4586887*LN(1.2*AK43/(LN(2.4*AK43/(LN(1+2.4*AK43)))))-0.4586887*LN(2*AK43/(LN(1+2*AK43))) ->  | AL44: =1.4586887*LN(1.2*AL43/(LN(2.4*AL43/(LN(1+2.4*AL43)))))-0.4586887*LN(2*AL43/(LN(1+2*AL43))) ->  | AM44: =1.4586887*LN(1.2*AM43/(LN(2.4*AM43/(LN(1+2.4*AM43)))))-0.4586887*LN(2*AM43/(LN(1+2*AM43))) ->  | AN44: =1.4586887*LN(1.2*AN43/(LN(2.4*AN43/(LN(1+2.4*AN43)))))-0.4586887*LN(2*AN43/(LN(1+2*AN43))) ->  | AO44: =1.4586887*LN(1.2*AO43/(LN(2.4*AO43/(LN(1+2.4*AO43)))))-0.4586887*LN(2*AO43/(LN(1+2*AO43))) ->  | AP44: =1.4586887*LN(1.2*AP43/(LN(2.4*AP43/(LN(1+2.4*AP43)))))-0.4586887*LN(2*AP43/(LN(1+2*AP43))) ->  | AQ44: =1.4586887*LN(1.2*AQ43/(LN(2.4*AQ43/(LN(1+2.4*AQ43)))))-0.4586887*LN(2*AQ43/(LN(1+2*AQ43))) ->  | AR44: =1.4586887*LN(1.2*AR43/(LN(2.4*AR43/(LN(1+2.4*AR43)))))-0.4586887*LN(2*AR43/(LN(1+2*AR43))) ->  | AS44: =1.4586887*LN(1.2*AS43/(LN(2.4*AS43/(LN(1+2.4*AS43)))))-0.4586887*LN(2*AS43/(LN(1+2*AS43))) ->  | AT44: =1.4586887*LN(1.2*AT43/(LN(2.4*AT43/(LN(1+2.4*AT43)))))-0.4586887*LN(2*AT43/(LN(1+2*AT43))) ->  | AU44: =1.4586887*LN(1.2*AU43/(LN(2.4*AU43/(LN(1+2.4*AU43)))))-0.4586887*LN(2*AU43/(LN(1+2*AU43))) ->  | AV44: =1.4586887*LN(1.2*AV43/(LN(2.4*AV43/(LN(1+2.4*AV43)))))-0.4586887*LN(2*AV43/(LN(1+2*AV43))) ->  | AW44: =1.4586887*LN(1.2*AW43/(LN(2.4*AW43/(LN(1+2.4*AW43)))))-0.4586887*LN(2*AW43/(LN(1+2*AW43))) ->  | AX44: =1.4586887*LN(1.2*AX43/(LN(2.4*AX43/(LN(1+2.4*AX43)))))-0.4586887*LN(2*AX43/(LN(1+2*AX43))) ->  | AY44: =1.4586887*LN(1.2*AY43/(LN(2.4*AY43/(LN(1+2.4*AY43)))))-0.4586887*LN(2*AY43/(LN(1+2*AY43))) ->  | AZ44: =1.4586887*LN(1.2*AZ43/(LN(2.4*AZ43/(LN(1+2.4*AZ43)))))-0.4586887*LN(2*AZ43/(LN(1+2*AZ43))) ->  | BA44: =1.4586887*LN(1.2*BA43/(LN(2.4*BA43/(LN(1+2.4*BA43)))))-0.4586887*LN(2*BA43/(LN(1+2*BA43))) ->  | BB44: =1.4586887*LN(1.2*BB43/(LN(2.4*BB43/(LN(1+2.4*BB43)))))-0.4586887*LN(2*BB43/(LN(1+2*BB43))) ->  | BC44: =1.4586887*LN(1.2*BC43/(LN(2.4*BC43/(LN(1+2.4*BC43)))))-0.4586887*LN(2*BC43/(LN(1+2*BC43))) ->  | BD44: =1.4586887*LN(1.2*BD43/(LN(2.4*BD43/(LN(1+2.4*BD43)))))-0.4586887*LN(2*BD43/(LN(1+2*BD43))) ->  | BE44: =1.4586887*LN(1.2*BE43/(LN(2.4*BE43/(LN(1+2.4*BE43)))))-0.4586887*LN(2*BE43/(LN(1+2*BE43))) ->  | BF44: =1.4586887*LN(1.2*BF43/(LN(2.4*BF43/(LN(1+2.4*BF43)))))-0.4586887*LN(2*BF43/(LN(1+2*BF43))) ->  | BG44: =1.4586887*LN(1.2*BG43/(LN(2.4*BG43/(LN(1+2.4*BG43)))))-0.4586887*LN(2*BG43/(LN(1+2*BG43))) ->  | BH44: =1.4586887*LN(1.2*BH43/(LN(2.4*BH43/(LN(1+2.4*BH43)))))-0.4586887*LN(2*BH43/(LN(1+2*BH43))) ->  | BI44: =1.4586887*LN(1.2*BI43/(LN(2.4*BI43/(LN(1+2.4*BI43)))))-0.4586887*LN(2*BI43/(LN(1+2*BI43))) ->  | BJ44: =1.4586887*LN(1.2*BJ43/(LN(2.4*BJ43/(LN(1+2.4*BJ43)))))-0.4586887*LN(2*BJ43/(LN(1+2*BJ43))) ->  | BK44: =1.4586887*LN(1.2*BK43/(LN(2.4*BK43/(LN(1+2.4*BK43)))))-0.4586887*LN(2*BK43/(LN(1+2*BK43))) ->  | BL44: =1.4586887*LN(1.2*BL43/(LN(2.4*BL43/(LN(1+2.4*BL43)))))-0.4586887*LN(2*BL43/(LN(1+2*BL43))) ->  | BM44: =1.4586887*LN(1.2*BM43/(LN(2.4*BM43/(LN(1+2.4*BM43)))))-0.4586887*LN(2*BM43/(LN(1+2*BM43))) ->  | BN44: =1.4586887*LN(1.2*BN43/(LN(2.4*BN43/(LN(1+2.4*BN43)))))-0.4586887*LN(2*BN43/(LN(1+2*BN43))) ->  | BO44: =1.4586887*LN(1.2*BO43/(LN(2.4*BO43/(LN(1+2.4*BO43)))))-0.4586887*LN(2*BO43/(LN(1+2*BO43))) ->  | BP44: =1.4586887*LN(1.2*BP43/(LN(2.4*BP43/(LN(1+2.4*BP43)))))-0.4586887*LN(2*BP43/(LN(1+2*BP43))) ->  | BQ44: =1.4586887*LN(1.2*BQ43/(LN(2.4*BQ43/(LN(1+2.4*BQ43)))))-0.4586887*LN(2*BQ43/(LN(1+2*BQ43))) ->  | BR44: =1.4586887*LN(1.2*BR43/(LN(2.4*BR43/(LN(1+2.4*BR43)))))-0.4586887*LN(2*BR43/(LN(1+2*BR43))) ->  | BS44: =1.4586887*LN(1.2*BS43/(LN(2.4*BS43/(LN(1+2.4*BS43)))))-0.4586887*LN(2*BS43/(LN(1+2*BS43))) ->  | BT44: =1.4586887*LN(1.2*BT43/(LN(2.4*BT43/(LN(1+2.4*BT43)))))-0.4586887*LN(2*BT43/(LN(1+2*BT43))) ->  | BU44: =1.4586887*LN(1.2*BU43/(LN(2.4*BU43/(LN(1+2.4*BU43)))))-0.4586887*LN(2*BU43/(LN(1+2*BU43))) ->  | BV44: =1.4586887*LN(1.2*BV43/(LN(2.4*BV43/(LN(1+2.4*BV43)))))-0.4586887*LN(2*BV43/(LN(1+2*BV43))) ->  | BW44: =1.4586887*LN(1.2*BW43/(LN(2.4*BW43/(LN(1+2.4*BW43)))))-0.4586887*LN(2*BW43/(LN(1+2*BW43))) ->  | BX44: =1.4586887*LN(1.2*BX43/(LN(2.4*BX43/(LN(1+2.4*BX43)))))-0.4586887*LN(2*BX43/(LN(1+2*BX43))) ->  | BY44: =1.4586887*LN(1.2*BY43/(LN(2.4*BY43/(LN(1+2.4*BY43)))))-0.4586887*LN(2*BY43/(LN(1+2*BY43))) ->  | BZ44: =1.4586887*LN(1.2*BZ43/(LN(2.4*BZ43/(LN(1+2.4*BZ43)))))-0.4586887*LN(2*BZ43/(LN(1+2*BZ43))) ->  | CA44: =1.4586887*LN(1.2*CA43/(LN(2.4*CA43/(LN(1+2.4*CA43)))))-0.4586887*LN(2*CA43/(LN(1+2*CA43))) ->  | CB44: =1.4586887*LN(1.2*CB43/(LN(2.4*CB43/(LN(1+2.4*CB43)))))-0.4586887*LN(2*CB43/(LN(1+2*CB43))) ->  | CC44: =1.4586887*LN(1.2*CC43/(LN(2.4*CC43/(LN(1+2.4*CC43)))))-0.4586887*LN(2*CC43/(LN(1+2*CC43))) ->  | CD44: =1.4586887*LN(1.2*CD43/(LN(2.4*CD43/(LN(1+2.4*CD43)))))-0.4586887*LN(2*CD43/(LN(1+2*CD43))) ->  | CE44: =1.4586887*LN(1.2*CE43/(LN(2.4*CE43/(LN(1+2.4*CE43)))))-0.4586887*LN(2*CE43/(LN(1+2*CE43))) ->  | CF44: =1.4586887*LN(1.2*CF43/(LN(2.4*CF43/(LN(1+2.4*CF43)))))-0.4586887*LN(2*CF43/(LN(1+2*CF43))) ->  | CG44: =1.4586887*LN(1.2*CG43/(LN(2.4*CG43/(LN(1+2.4*CG43)))))-0.4586887*LN(2*CG43/(LN(1+2*CG43))) ->  | CH44: =1.4586887*LN(1.2*CH43/(LN(2.4*CH43/(LN(1+2.4*CH43)))))-0.4586887*LN(2*CH43/(LN(1+2*CH43))) ->  | CI44: =1.4586887*LN(1.2*CI43/(LN(2.4*CI43/(LN(1+2.4*CI43)))))-0.4586887*LN(2*CI43/(LN(1+2*CI43))) ->  | CJ44: =1.4586887*LN(1.2*CJ43/(LN(2.4*CJ43/(LN(1+2.4*CJ43)))))-0.4586887*LN(2*CJ43/(LN(1+2*CJ43))) ->  | CK44: =1.4586887*LN(1.2*CK43/(LN(2.4*CK43/(LN(1+2.4*CK43)))))-0.4586887*LN(2*CK43/(LN(1+2*CK43))) ->  | CL44: =1.4586887*LN(1.2*CL43/(LN(2.4*CL43/(LN(1+2.4*CL43)))))-0.4586887*LN(2*CL43/(LN(1+2*CL43))) ->  | CM44: =1.4586887*LN(1.2*CM43/(LN(2.4*CM43/(LN(1+2.4*CM43)))))-0.4586887*LN(2*CM43/(LN(1+2*CM43))) ->  | CN44: =1.4586887*LN(1.2*CN43/(LN(2.4*CN43/(LN(1+2.4*CN43)))))-0.4586887*LN(2*CN43/(LN(1+2*CN43))) ->  | CO44: =1.4586887*LN(1.2*CO43/(LN(2.4*CO43/(LN(1+2.4*CO43)))))-0.4586887*LN(2*CO43/(LN(1+2*CO43))) ->  | CP44: =1.4586887*LN(1.2*CP43/(LN(2.4*CP43/(LN(1+2.4*CP43)))))-0.4586887*LN(2*CP43/(LN(1+2*CP43))) ->  | CQ44: =1.4586887*LN(1.2*CQ43/(LN(2.4*CQ43/(LN(1+2.4*CQ43)))))-0.4586887*LN(2*CQ43/(LN(1+2*CQ43))) ->  | CR44: =1.4586887*LN(1.2*CR43/(LN(2.4*CR43/(LN(1+2.4*CR43)))))-0.4586887*LN(2*CR43/(LN(1+2*CR43))) ->  | CS44: =1.4586887*LN(1.2*CS43/(LN(2.4*CS43/(LN(1+2.4*CS43)))))-0.4586887*LN(2*CS43/(LN(1+2*CS43))) ->  | CT44: =1.4586887*LN(1.2*CT43/(LN(2.4*CT43/(LN(1+2.4*CT43)))))-0.4586887*LN(2*CT43/(LN(1+2*CT43))) ->  | CU44: =1.4586887*LN(1.2*CU43/(LN(2.4*CU43/(LN(1+2.4*CU43)))))-0.4586887*LN(2*CU43/(LN(1+2*CU43))) ->  | CV44: =1.4586887*LN(1.2*CV43/(LN(2.4*CV43/(LN(1+2.4*CV43)))))-0.4586887*LN(2*CV43/(LN(1+2*CV43))) ->  | CW44: =1.4586887*LN(1.2*CW43/(LN(2.4*CW43/(LN(1+2.4*CW43)))))-0.4586887*LN(2*CW43/(LN(1+2*CW43))) ->  | CX44: =1.4586887*LN(1.2*CX43/(LN(2.4*CX43/(LN(1+2.4*CX43)))))-0.4586887*LN(2*CX43/(LN(1+2*CX43))) ->  | CY44: =1.4586887*LN(1.2*CY43/(LN(2.4*CY43/(LN(1+2.4*CY43)))))-0.4586887*LN(2*CY43/(LN(1+2*CY43))) ->  | CZ44: =1.4586887*LN(1.2*CZ43/(LN(2.4*CZ43/(LN(1+2.4*CZ43)))))-0.4586887*LN(2*CZ43/(LN(1+2*CZ43))) ->  | DA44: =1.4586887*LN(1.2*DA43/(LN(2.4*DA43/(LN(1+2.4*DA43)))))-0.4586887*LN(2*DA43/(LN(1+2*DA43))) ->  | DB44: =1.4586887*LN(1.2*DB43/(LN(2.4*DB43/(LN(1+2.4*DB43)))))-0.4586887*LN(2*DB43/(LN(1+2*DB43))) ->  | DC44: =1.4586887*LN(1.2*DC43/(LN(2.4*DC43/(LN(1+2.4*DC43)))))-0.4586887*LN(2*DC43/(LN(1+2*DC43))) ->  | DD44: =1.4586887*LN(1.2*DD43/(LN(2.4*DD43/(LN(1+2.4*DD43)))))-0.4586887*LN(2*DD43/(LN(1+2*DD43))) ->  | DE44: =1.4586887*LN(1.2*DE43/(LN(2.4*DE43/(LN(1+2.4*DE43)))))-0.4586887*LN(2*DE43/(LN(1+2*DE43))) ->  | DF44: =1.4586887*LN(1.2*DF43/(LN(2.4*DF43/(LN(1+2.4*DF43)))))-0.4586887*LN(2*DF43/(LN(1+2*DF43))) ->  | DG44: =1.4586887*LN(1.2*DG43/(LN(2.4*DG43/(LN(1+2.4*DG43)))))-0.4586887*LN(2*DG43/(LN(1+2*DG43))) ->  | DH44: =1.4586887*LN(1.2*DH43/(LN(2.4*DH43/(LN(1+2.4*DH43)))))-0.4586887*LN(2*DH43/(LN(1+2*DH43))) ->  | DI44: =1.4586887*LN(1.2*DI43/(LN(2.4*DI43/(LN(1+2.4*DI43)))))-0.4586887*LN(2*DI43/(LN(1+2*DI43))) ->  | DJ44: =1.4586887*LN(1.2*DJ43/(LN(2.4*DJ43/(LN(1+2.4*DJ43)))))-0.4586887*LN(2*DJ43/(LN(1+2*DJ43))) ->  | DK44: =1.4586887*LN(1.2*DK43/(LN(2.4*DK43/(LN(1+2.4*DK43)))))-0.4586887*LN(2*DK43/(LN(1+2*DK43))) ->  | DL44: =1.4586887*LN(1.2*DL43/(LN(2.4*DL43/(LN(1+2.4*DL43)))))-0.4586887*LN(2*DL43/(LN(1+2*DL43))) ->  | DM44: =1.4586887*LN(1.2*DM43/(LN(2.4*DM43/(LN(1+2.4*DM43)))))-0.4586887*LN(2*DM43/(LN(1+2*DM43))) ->  | DN44: =1.4586887*LN(1.2*DN43/(LN(2.4*DN43/(LN(1+2.4*DN43)))))-0.4586887*LN(2*DN43/(LN(1+2*DN43))) ->  | DO44: =1.4586887*LN(1.2*DO43/(LN(2.4*DO43/(LN(1+2.4*DO43)))))-0.4586887*LN(2*DO43/(LN(1+2*DO43))) ->  | DP44: =1.4586887*LN(1.2*DP43/(LN(2.4*DP43/(LN(1+2.4*DP43)))))-0.4586887*LN(2*DP43/(LN(1+2*DP43))) ->  | DQ44: =1.4586887*LN(1.2*DQ43/(LN(2.4*DQ43/(LN(1+2.4*DQ43)))))-0.4586887*LN(2*DQ43/(LN(1+2*DQ43))) ->  | DR44: =1.4586887*LN(1.2*DR43/(LN(2.4*DR43/(LN(1+2.4*DR43)))))-0.4586887*LN(2*DR43/(LN(1+2*DR43))) ->  | DS44: =1.4586887*LN(1.2*DS43/(LN(2.4*DS43/(LN(1+2.4*DS43)))))-0.4586887*LN(2*DS43/(LN(1+2*DS43))) ->  | DT44: =1.4586887*LN(1.2*DT43/(LN(2.4*DT43/(LN(1+2.4*DT43)))))-0.4586887*LN(2*DT43/(LN(1+2*DT43))) ->  | DU44: =1.4586887*LN(1.2*DU43/(LN(2.4*DU43/(LN(1+2.4*DU43)))))-0.4586887*LN(2*DU43/(LN(1+2*DU43))) ->  | DV44: =1.4586887*LN(1.2*DV43/(LN(2.4*DV43/(LN(1+2.4*DV43)))))-0.4586887*LN(2*DV43/(LN(1+2*DV43))) ->  | DW44: =1.4586887*LN(1.2*DW43/(LN(2.4*DW43/(LN(1+2.4*DW43)))))-0.4586887*LN(2*DW43/(LN(1+2*DW43))) ->  | DX44: =1.4586887*LN(1.2*DX43/(LN(2.4*DX43/(LN(1+2.4*DX43)))))-0.4586887*LN(2*DX43/(LN(1+2*DX43))) ->  | DY44: =1.4586887*LN(1.2*DY43/(LN(2.4*DY43/(LN(1+2.4*DY43)))))-0.4586887*LN(2*DY43/(LN(1+2*DY43))) ->  | DZ44: =1.4586887*LN(1.2*DZ43/(LN(2.4*DZ43/(LN(1+2.4*DZ43)))))-0.4586887*LN(2*DZ43/(LN(1+2*DZ43))) ->  | EA44: =1.4586887*LN(1.2*EA43/(LN(2.4*EA43/(LN(1+2.4*EA43)))))-0.4586887*LN(2*EA43/(LN(1+2*EA43))) ->  | EB44: =1.4586887*LN(1.2*EB43/(LN(2.4*EB43/(LN(1+2.4*EB43)))))-0.4586887*LN(2*EB43/(LN(1+2*EB43))) ->  | EC44: =1.4586887*LN(1.2*EC43/(LN(2.4*EC43/(LN(1+2.4*EC43)))))-0.4586887*LN(2*EC43/(LN(1+2*EC43))) ->  | ED44: =1.4586887*LN(1.2*ED43/(LN(2.4*ED43/(LN(1+2.4*ED43)))))-0.4586887*LN(2*ED43/(LN(1+2*ED43))) ->  | EE44: =1.4586887*LN(1.2*EE43/(LN(2.4*EE43/(LN(1+2.4*EE43)))))-0.4586887*LN(2*EE43/(LN(1+2*EE43))) ->  | EF44: =1.4586887*LN(1.2*EF43/(LN(2.4*EF43/(LN(1+2.4*EF43)))))-0.4586887*LN(2*EF43/(LN(1+2*EF43))) ->  | EG44: =1.4586887*LN(1.2*EG43/(LN(2.4*EG43/(LN(1+2.4*EG43)))))-0.4586887*LN(2*EG43/(LN(1+2*EG43))) ->  | EH44: =1.4586887*LN(1.2*EH43/(LN(2.4*EH43/(LN(1+2.4*EH43)))))-0.4586887*LN(2*EH43/(LN(1+2*EH43))) ->  | EI44: =1.4586887*LN(1.2*EI43/(LN(2.4*EI43/(LN(1+2.4*EI43)))))-0.4586887*LN(2*EI43/(LN(1+2*EI43))) ->  | EJ44: =1.4586887*LN(1.2*EJ43/(LN(2.4*EJ43/(LN(1+2.4*EJ43)))))-0.4586887*LN(2*EJ43/(LN(1+2*EJ43))) -> 
B45: Concentration average | E45: =(F46+F47)/2 ->  | AK45: =(AL46+AL47)/2 ->  | BQ45: =(BR46+BR47)/2 ->  | CW45: =(CX46+CX47)/2 ->  | EC45: =(ED46+ED47)/2 -> 
B46: Peak Expected (mg/L) Just After Dose Time | D46: =$C20*$C10/$D14+D47 -> 0 | E46: =E47+$C23*$C10/$D14 ->  | AK46: =AK47+$C23*$C10/$D14 ->  | BQ46: =BQ47+$C23*$C10/$D14 ->  | CW46: =CW47+$C23*$C10/$D14 ->  | EC46: =EC47+$C23*$C10/$D14 ->  | EK46: =EK47+$C23/$D14 -> 
B47: Trough Expected (mg/L) Just Before Dose Time | D47: =IF($C50>0,$D15*C44,0) -> 0 | E47: =$D15*D44 ->  | AK47: =$D15*AJ44 ->  | BQ47: =$D15*BP44 ->  | CW47: =$D15*CV44 ->  | EC47: =$D15*EB44 -> 
A49: Hide | B49: Input Measured Peak (mg/L)
B50: Input Measured Trough (mg/L)
B51: Input Time (Hours) Level Drawn Before 1st Dose
A53: Hide | B53: Square of Peak Errors | D53: =IF(ISNUMBER(D49),((D49-D46)^2)/(0.1*(D46))^2,"") ->  | E53: =IF(ISNUMBER(E49),((E49-E46)^2)/(0.1*(E46))^2,"") ->  | BQ53: =IF(ISNUMBER(BQ49),((BQ49-BQ46)^2)/(0.1*(BQ46))^2,"") ->  | EC53: =IF(ISNUMBER(EC49),((EC49-EC46)^2)/(0.1*(EC46))^2,"") -> 
B54: Square of Trough Errors | D54: =IF(ISNUMBER(D50),((D50-E47)^2)/(0.1*(D50))^2,"") ->  | AJ54: =IF(ISNUMBER(AJ50),((AJ50-AK47)^2)/(0.1*(AJ50))^2,"") ->  | BP54: =IF(ISNUMBER(BP50),((BP50-BQ47)^2)/(0.1*(BP50))^2,"") ->  | CV54: =IF(ISNUMBER(CV50),((CV50-CW47)^2)/(0.1*(CV50))^2,"") ->  | EB54: =IF(ISNUMBER(EB50),((EB50-EC47)^2)/(0.1*(EB50))^2,"") -> 
B56: Bayesian Fitting | C56: 1
B57: Sum of Square of Errors | C57: =IF(C56=1,SUM(D53:EJ54)+(D15-C15)^2/(0.4*C15)^2+ (C19-D19)^2/(C19*0.4)^2,SUM(D53:EJ54)+(C14-D14)^2/(0.4*D14)^2+(D15-C15)^2/(0.4*C15)^2+ (C19-D19)^2/(C19*0.3)^2) -> 0

Sheet Peak Trough Data Fitting
G1: Phenytoin Michaelis Menten (Capacity-Limited) Pharmacokinetics One Compartment Open Model
B2: Demographic Data Input | G2: Bayesian Data Fitting of Steady State or Non Steady State Dosing and Serum Levels | AE2: Sex
B3: Select Age Group (Years) Drop Down Box | C3: > 59 | G3: Marshall Pierce PharmD | AE3: Male
B4: Input Height (inches) | C4: 70 | G4: https://pkineticdrugdosing.com/documents/phenytoin.html | AE4: Female
B5: Input Weight (kg) | C5: 70
B6: Select Sex (Drop Down Box) | C6: Male | F6: Instructions:
B7: Input Serum Albumin (grams/dL) Normal is 4.4 g/dL | C7: 4.4 | F7: Click new patient button to clear prior data. Enter information in the blue fields.
B8: Select if Hemodialysis Patient (Drop Down Box) | C8: No | F8: If levels are to be analyzed enter the concentration before the first dose and time of level.
B9: Select Dosage Form Drop Down Box | C9: Capsule | F9: This assumes the patient was on prior therapy. If there was no prior therapy leave both cells blank.
B10: Fraction of Dosage Form That Is Pure Drug | C10: =IF(C9="Capsule",0.92,IF(C9="Injection",0.92,IF(C9="Tablet",1,IF(C9="Suspension",1)))) -> 0.92 | F10: Enter the dosing history including the dose and time for all doses that contribute to the serum levels to be analyzed.
B11: Ideal Body Weight (kg) calculated | C11: =IF(C6="Male", (C4-60)*2.3+50,(C4-60)*2.3+45.5) -> 73 | F11: Dose and levels are enter chronologically from left to right. Levels should be enter after the dose that are associated with and before the next dose.
B12: Ideal Body Weight Used (kg) | C12: =IF(C5<C11,C5,C11) -> 70 | F12: Enter know levels and time of levels. Peaks should be drawn 2 hours after end of a fos/phenytoin infusion.
B13: Population Mean Parameters | D13: Fit Parameters | F13: All does are modeled as bolus doses. If extended release phenytoin capsules are being administered divide
B14: Calculated Vd (Liters) | C14: =IF(C5>C11,0.65*C12+1.33*(C5-C12),C5*0.65) -> 45.5 | D14: 45.5 | F14: the total daily dose into 3 to 4 maintenance doses and set the Tau accordingly.
B15: Km (mg/liter) population mean | C15: =VLOOKUP(C3,lookuparray!A2:F8,5,FALSE) -> 5.8 | D15: 4.530250772 | F15: Data Fitting:
B16: Vmax (mg/kg/day) population mean | C16: =VLOOKUP(C3,lookuparray!A2:F8,4,FALSE) -> 7 | D16: =D17/C12 -> 8.792493085 | F16: Select the type of fitting (1 without Vd, 2 with Vd). It is NOT recommended to fit Vd if a peak level was not drawn. Click the fit data button.
B17: Vmax Calculated (mg/day) | C17: =C16*C12 -> 490 | D17: =D18*24 -> 615.474516 | F17: After fitting levels adjust the maintenance dose and Tau as needed to maintain therapeutic levels for individualized dosing.
B18: Vmax Calculated (mg/hours) | C18: =C16*C12/24 -> 20.41666667 | D18: =D19*D14 -> 25.6447715 | F18: Order follow up levels every 3-5 days.
B19: Vmax Calculated (mg/hour/liter) | C19: =C16*C12/(24*C14) -> 0.4487179487 | D19: 0.5636213516 | F19: Please review the information at the link above for a better understanding of phenytoin kinetics before using the calculator.
B20: Input Loaing Dose(mg) | C20: 1000 | F20: No warranties are expressed or implied and the dosing tool is made available for for educational use.
B21: Calculated Post Loading Dose Level(mg/L) | C21: =C20*C10/C14 -> 20.21978022
B22: Input Dosage Interval, Tau (Hours) | C22: 6 | F22: The graphic below demonstrates predicted levels using population parameters before levels are fit and patient specific parameters after levels are fit for all doses entered.
B23: Input Maintenance Dose (mg) | C23: 100 | D23: =IF(OR(D25<=0,D31>20),"The dose it too high and is above or equal to Vmax. Reduce the dose or increase the interval.","") -> 
B24: Population Based Dosing | D24: Individualized Dosing
A25: hide | B25: Predicted Cssavg Calculated (mg/L) | C25: =(C15*$C23*$C10/$C22)/(C18-$C23*$C10/$C22) -> 17.49508197 | D25: =(D15*$C23*$C10/$C22)/(D18-$C23*$C10/$C22) -> 6.736581654
B26: Accumulation Factor | C26: =$C$23*$C$10/(C$14*(1-EXP(($C$23*$C$10-C$19*C$14*$C$22)/(C$15*C$14)))) -> 18.52554067 | D26: =$C$23*$C$10/(D$14*(1-EXP(($C$23*$C$10-D$19*D$14*$C$22)/(D$15*D$14)))) -> 7.798069441
B27: X of lambert equation calculated | C27: =(C26/C$15)*EXP((C26-C$19*$C$22)/C$15) -> 48.96766552 | D27: =(D26/D$15)*EXP((D26-D$19*$C$22)/D$15) -> 4.562883269
B28: Wo of x calculated | C28: =1.4586887*LN(1.2*C27/(LN(2.4*C27/(LN(1+2.4*C27)))))-0.4586887*LN(2*C27/(LN(1+2*C27))) -> 2.840465379 | D28: =1.4586887*LN(1.2*D27/(LN(2.4*D27/(LN(1+2.4*D27)))))-0.4586887*LN(2*D27/(LN(1+2*D27))) -> 1.274381635
B29: Predicted Css trough calculated (mg/L) | C29: =C$15*C28 -> 16.4746992 | D29: =D$15*D28 -> 5.773268388
B30: Predicted Css max calculated (mg/L) | C30: =C29+$C$23*$C$10/C$14 -> 18.49667722 | D30: =D29+$C$23*$C$10/D$14 -> 7.79524641
B31: Predicted Caverage calculated (mg/L) | C31: =(C29+C30)/2 -> 17.48568821 | D31: =(D29+D30)/2 -> 6.784257399
B32: Cp Average Steady State Equivalent to Normal Protein Binding. This row applies if low albumin or dialysis. (mg/L) | C32: =IF(C31="","",IF($C8="No",C31/(0.9*($C$7/4.4)+0.1),C31/(0.9*0.48*($C$7/4.4)+0.1))) -> 17.48568821 | D32: =IF(D31="","",IF($C8="No",D31/(0.9*($C$7/4.4)+0.1),D31/(0.9*0.48*($C$7/4.4)+0.1))) -> 6.784257399
B33: Cp Average Steady State Equivalent to Normal Protein Binding. This row applies if free levels are entered below. (mg/L) | C33: =IF(ISNUMBER($C36),$C36/0.1*C31,"") -> 17.48568821 | D33: =IF(ISNUMBER($C36),$C36/0.1*D31,"") -> 6.784257399
B34: Input Most Recent Free level if drawn (mg/L) | C34: 1
B35: Input Total Level Assoociated with Free Level (mg/L) | C35: 10
B36: Free Fraction Calculated (Normal free faction is 0.1) | C36: =IF(AND(C34<>"",C35<>""),C34/C35,"") -> 0.1
B37: Time to 90% of Steady State (Days) from Start of Therapy. Assumes No Loading Dose and No Drug is on Board at Start of Therapy. | C37: =(C15*C14/(C18-$C23*$C10/$C22)^2)*(2.3*C18-0.9*$C23*$C10/$C22)/24 -> 14.10989116 | D37: =(D15*D14/(D18-$C23*$C10/$C22)^2)*(2.3*D18-0.9*$C23*$C10/$C22)/24 -> 3.649713148
C40: Input Dose (mg) | D40: 100 | G40: 100 | J40: 100 | M40: 100 | P40: 100 | S40: 100 | V40: 100 | Y40: 100 | AB40: 100 | AE40: 100 | AH40: 100 | AK40: 100 | AN40: 100 | AQ40: 100 | AT40: 100 | AW40: 100 | AZ40: 100 | BC40: 100 | BF40: 100 | BI40: 100 | BL40: 100 | BO40: 100 | BR40: 100 | BU40: 100 | BX40: 100 | CA40: 100 | CD40: 100 | CG40: 100 | CJ40: 100 | CM40: 100
B41: Input Date/Time of Dose month/day/year (xx/xx/xx) | D41: 2023-08-01T06:00:00 | G41: 2023-08-01T12:00:00 | J41: 2023-08-01T18:00:00 | M41: 2023-08-02 | P41: 2023-08-02T06:00:00 | S41: 2023-08-02T12:00:00 | V41: 2023-08-02T18:00:00 | Y41: 2023-08-03 | AB41: 2023-08-03T06:00:00 | AE41: 2023-08-03T12:00:00 | AH41: 2023-08-03T18:00:00 | AK41: 2023-08-04 | AN41: 2023-08-04T06:00:00 | AQ41: 2023-08-04T12:00:00 | AT41: 2023-08-04T18:00:00 | AW41: 2023-08-05 | AZ41: 2023-08-05T06:00:00 | BC41: 2023-08-05T12:00:00 | BF41: 2023-08-05T18:00:00 | BI41: 2023-08-06 | BL41: 2023-08-06T06:00:00 | BO41: 2023-08-06T12:00:00 | BR41: 2023-08-06T18:00:00 | BU41: 2023-08-07 | BX41: 2023-08-07T06:00:00 | CA41: 2023-08-07T12:00:00 | CD41: 2023-08-07T18:00:00 | CG41: 2023-08-08 | CJ41: 2023-08-08T06:00:00 | CM41: 2023-08-08T12:00:00
B42: Time absolute (Hours) | D42: 0 | G42: =IF(AND(ISNUMBER(D41),ISNUMBER(G41)),(G41-$D41)*24,"") -> 6 | J42: =IF(AND(ISNUMBER(G41),ISNUMBER(J41)),(J41-$D41)*24,"") -> 12 | M42: =IF(AND(ISNUMBER(J41),ISNUMBER(M41)),(M41-$D41)*24,"") -> 18 | P42: =IF(AND(ISNUMBER(M41),ISNUMBER(P41)),(P41-$D41)*24,"") -> 24 | S42: =IF(AND(ISNUMBER(P41),ISNUMBER(S41)),(S41-$D41)*24,"") -> 30 | V42: =IF(AND(ISNUMBER(S41),ISNUMBER(V41)),(V41-$D41)*24,"") -> 36 | Y42: =IF(AND(ISNUMBER(V41),ISNUMBER(Y41)),(Y41-$D41)*24,"") -> 42 | AB42: =IF(AND(ISNUMBER(Y41),ISNUMBER(AB41)),(AB41-$D41)*24,"") -> 48 | AE42: =IF(AND(ISNUMBER(AB41),ISNUMBER(AE41)),(AE41-$D41)*24,"") -> 54 | AH42: =IF(AND(ISNUMBER(AE41),ISNUMBER(AH41)),(AH41-$D41)*24,"") -> 60 | AK42: =IF(AND(ISNUMBER(AH41),ISNUMBER(AK41)),(AK41-$D41)*24,"") -> 66 | AN42: =IF(AND(ISNUMBER(AK41),ISNUMBER(AN41)),(AN41-$D41)*24,"") -> 72 | AQ42: =IF(AND(ISNUMBER(AN41),ISNUMBER(AQ41)),(AQ41-$D41)*24,"") -> 78 | AT42: =IF(AND(ISNUMBER(AQ41),ISNUMBER(AT41)),(AT41-$D41)*24,"") -> 84 | AW42: =IF(AND(ISNUMBER(AT41),ISNUMBER(AW41)),(AW41-$D41)*24,"") -> 90 | AZ42: =IF(AND(ISNUMBER(AW41),ISNUMBER(AZ41)),(AZ41-$D41)*24,"") -> 96 | BC42: =IF(AND(ISNUMBER(AZ41),ISNUMBER(BC41)),(BC41-$D41)*24,"") -> 102 | BF42: =IF(AND(ISNUMBER(BC41),ISNUMBER(BF41)),(BF41-$D41)*24,"") -> 108 | BI42: =IF(AND(ISNUMBER(BF41),ISNUMBER(BI41)),(BI41-$D41)*24,"") -> 114 | BL42: =IF(AND(ISNUMBER(BI41),ISNUMBER(BL41)),(BL41-$D41)*24,"") -> 120 | BO42: =IF(AND(ISNUMBER(BL41),ISNUMBER(BO41)),(BO41-$D41)*24,"") -> 126 | BR42: =IF(AND(ISNUMBER(BO41),ISNUMBER(BR41)),(BR41-$D41)*24,"") -> 132 | BU42: =IF(AND(ISNUMBER(BR41),ISNUMBER(BU41)),(BU41-$D41)*24,"") -> 138 | BX42: =IF(AND(ISNUMBER(BU41),ISNUMBER(BX41)),(BX41-$D41)*24,"") -> 144 | CA42: =IF(AND(ISNUMBER(BX41),ISNUMBER(CA41)),(CA41-$D41)*24,"") -> 150 | CD42: =IF(AND(ISNUMBER(CA41),ISNUMBER(CD41)),(CD41-$D41)*24,"") -> 156 | CG42: =IF(AND(ISNUMBER(CD41),ISNUMBER(CG41)),(CG41-$D41)*24,"") -> 162 | CJ42: =IF(AND(ISNUMBER(CG41),ISNUMBER(CJ41)),(CJ41-$D41)*24,"") -> 168 | CM42: =IF(AND(ISNUMBER(CJ41),ISNUMBER(CM41)),(CM41-$D41)*24,"") -> 174 | CN42: =IF(AND(ISNUMBER(CK41),ISNUMBER(CN41)),(CN41-$D41)*24,"") ->  | EZ42: =IF(AND(ISNUMBER(EW41),ISNUMBER(EZ41)),(EZ41-$D41)*24,"") ->  | GQ42: =$C22+GP42 -> 
C43: Pre Dose 1 | D43: Dose 1 | G43: Dose 2 | J43: Dose 3 | M43: Dose 4 | P43: Dose 5 | S43: Dose 6 | V43: Dose 7 | Y43: Dose 8 | AB43: Dose 9 | AE43: Dose 10 | AH43: Dose 11 | AK43: Dose 12 | AN43: Dose 13 | AQ43: Dose 14 | AT43: Dose 15 | AW43: Dose 16 | AZ43: Dose 17 | BC43: Dose 18 | BF43: Dose 19 | BI43: Dose 20 | BL43: Dose 21 | BO43: Dose 22 | BR43: Dose 23 | BU43: Dose 24 | BX43: Dose 25 | CA43: Dose 26 | CD43: Dose 27 | CG43: Dose 28 | CJ43: Dose 29 | CM43: Dose 30 | CN43: Dose 31 | CO43: Dose 32 | CP43: Dose 33 | CQ43: Dose 34 | CR43: Dose 35 | CS43: Dose 36 | CT43: Dose 37 | CU43: Dose 38 | CV43: Dose 39 | CW43: Dose 40 | CX43: Dose 41 | CY43: Dose 42 | CZ43: Dose 43 | DA43: Dose 44 | DB43: Dose 45 | DC43: Dose 46 | DD43: Dose 47 | DE43: Dose 48 | DF43: Dose 49 | DG43: Dose 50 | DH43: Dose 51 | DI43: Dose 52 | DJ43: Dose 53 | DK43: Dose 54 | DL43: Dose 55 | DM43: Dose 56 | DN43: Dose 57 | DO43: Dose 58 | DP43: Dose 59 | DQ43: Dose 60 | DR43: Dose 61 | DS43: Dose 62 | DT43: Dose 63 | DU43: Dose 64 | DV43: Dose 65 | DW43: Dose 66 | DX43: Dose 67 | DY43: Dose 68 | DZ43: Dose 69 | EA43: Dose 70 | EB43: Dose 71 | EC43: Dose 72 | ED43: Dose 73 | EE43: Dose 74 | EF43: Dose 75 | EG43: Dose 76 | EH43: Dose 77 | EI43: Dose 78 | EJ43: Dose 79 | EK43: Dose 80 | EL43: Dose 81 | EM43: Dose 82 | EN43: Dose 83 | EO43: Dose 84 | EP43: Dose 85 | EQ43: Dose 86 | ER43: Dose 87 | ES43: Dose 88 | ET43: Dose 89 | EU43: Dose 90 | EV43: Dose 91 | EW43: Dose 92 | EX43: Dose 93 | EY43: Dose 94 | EZ43: Dose 95 | FA43: Dose 96 | FB43: Dose 97 | FC43: Dose 98 | FD43: Dose 99 | FE43: Dose 100 | FF43: Dose 101 | FG43: Dose 102 | FH43: Dose 103 | FI43: Dose 104 | FJ43: Dose 105 | FK43: Dose 106 | FL43: Dose 107 | FM43: Dose 108 | FN43: Dose 109 | FO43: Dose 110 | FP43: Dose 111 | FQ43: Dose 112 | FR43: Dose 113 | FS43: Dose 114 | FT43: Dose 115 | FU43: Dose 116 | FV43: Dose 117 | FW43: Dose 118 | FX43: Dose 119 | FY43: Dose 120 | FZ43: Dose 121 | GA43: Dose 122 | GB43: Dose 123 | GC43: Dose 124 | GD43: Dose 125 | GE43: Dose 126 | GF43: Dose 127 | GG43: Dose 128 | GH43: Dose 129 | GI43: Dose 130 | GJ43: Dose 131 | GK43: Dose 132 | GL43: Dose 133 | GM43: Dose 134 | GN43: Dose 135 | GO43: Dose 136 | GP43: Dose 137
B44: x in lambert equation | C44: =C53/$D15*EXP((C53-$D19*(D41-C52)*24)/$D15) -> 0 | D44: =$D47/$D15*EXP(($D47-$D19*($G41-$D41)*24)/$D15) -> 0.3305987047 | E44: =IF(ISNUMBER(E52),$D47/$D15*EXP(($D47-$D19*(E52-$D41)*24)/$D15),"") -> 0.3305987047 | F44: =IF(ISNUMBER(F52),$D47/$D15*EXP(($D47-$D19*(F52-$D41)*24)/$D15),"") -> 0.3305987047 | G44: =G47/$D15*EXP((G47-$D19*(J41-G41)*24)/$D15) -> 0.6724199484 | H44: =IF(ISNUMBER(H52),$G47/$D15*EXP(($G47-$D19*(H52-$G41)*24)/$D15),"") -> 0.6724199484 | I44: =IF(ISNUMBER(I52),$G47/$D15*EXP(($G47-$D19*(I52-$G41)*24)/$D15),"") -> 0.6724199484 | J44: =J47/$D15*EXP((J47-$D19*(M41-J41)*24)/$D15) -> 1.009985529 | K44: =IF(ISNUMBER(K52),$J47/$D15*EXP(($J47-$D19*(K52-$J41)*24)/$D15),"") -> 1.009985529 | L44: =IF(ISNUMBER(L52),$J47/$D15*EXP(($J47-$D19*(L52-$J41)*24)/$D15),"") -> 1.009985529 | M44: =M47/$D15*EXP((M47-$D19*(P41-M41)*24)/$D15) -> 1.334495889 | N44: =IF(ISNUMBER(N52),$M47/$D15*EXP(($M47-$D19*(N52-$M41)*24)/$D15),"") -> 1.334495889 | O44: =IF(ISNUMBER(O52),$M47/$D15*EXP(($M47-$D19*(O52-$M41)*24)/$D15),"") -> 1.334495889 | P44: =P47/$D15*EXP((P47-$D19*(S41-P41)*24)/$D15) -> 1.640940645 | Q44: =IF(ISNUMBER(Q52),$P47/$D15*EXP(($P47-$D19*(Q52-$P41)*24)/$D15),"") -> 1.640940645 | R44: =IF(ISNUMBER(R52),$P47/$D15*EXP(($P47-$D19*(R52-$P41)*24)/$D15),"") -> 1.640940645 | S44: =S47/$D15*EXP((S47-$D19*(V41-S41)*24)/$D15) -> 1.926668812 | T44: =IF(ISNUMBER(T52),$S47/$D15*EXP(($S47-$D19*(T52-$S41)*24)/$D15),"") -> 1.926668812 | U44: =IF(ISNUMBER(U52),$S47/$D15*EXP(($S47-$D19*(U52-$S41)*24)/$D15),"") -> 1.926668812 | V44: =V47/$D15*EXP((V47-$D19*(Y41-V41)*24)/$D15) -> 2.190559039 | W44: =IF(ISNUMBER(W52),$V47/$D15*EXP(($V47-$D19*(W52-$V41)*24)/$D15),"") -> 2.190559039 | X44: =IF(ISNUMBER(X52),$V47/$D15*EXP(($V47-$D19*(X52-$V41)*24)/$D15),"") -> 2.190559039 | Y44: =Y47/$D15*EXP((Y47-$D19*(AB41-Y41)*24)/$D15) -> 2.432493881 | Z44: =IF(ISNUMBER(Z52),$Y47/$D15*EXP(($Y47-$D19*(Z52-$Y41)*24)/$D15),"") -> 2.432493881 | AA44: =IF(ISNUMBER(AA52),$Y47/$D15*EXP(($Y47-$D19*(AA52-$Y41)*24)/$D15),"") -> 2.432493881 | AB44: =AB47/$D15*EXP((AB47-$D19*(AE41-AB41)*24)/$D15) -> 2.653009851 | AC44: =IF(ISNUMBER(AC52),$AB47/$D15*EXP(($AB47-$D19*(AC52-$AB41)*24)/$D15),"") -> 2.653009851 | AD44: =IF(ISNUMBER(AD52),$AB47/$D15*EXP(($AB47-$D19*(AD52-$AB41)*24)/$D15),"") -> 2.653009851 | AE44: =AE47/$D15*EXP((AE47-$D19*(AH41-AE41)*24)/$D15) -> 2.853058045 | AF44: =IF(ISNUMBER(AF52),$AE47/$D15*EXP(($AE47-$D19*(AF52-$AE41)*24)/$D15),"") -> 2.853058045 | AG44: =IF(ISNUMBER(AG52),$AE47/$D15*EXP(($AE47-$D19*(AG52-$AE41)*24)/$D15),"") -> 2.853058045 | AH44: =AH47/$D15*EXP((AH47-$D19*(AK41-AH41)*24)/$D15) -> 3.033838189 | AI44: =IF(ISNUMBER(AI52),$AH47/$D15*EXP(($AH47-$D19*(AI52-$AH41)*24)/$D15),"") -> 3.033838189 | AJ44: =IF(ISNUMBER(AJ52),$AH47/$D15*EXP(($AH47-$D19*(AJ52-$AH41)*24)/$D15),"") -> 3.033838189 | AK44: =AK47/$D15*EXP((AK47-$D19*(AN41-AK41)*24)/$D15) -> 3.196683134 | AL44: =IF(ISNUMBER(AL52),$AK47/$D15*EXP(($AK47-$D19*(AL52-$AK41)*24)/$D15),"") -> 3.196683134 | AM44: =IF(ISNUMBER(AM52),$AK47/$D15*EXP(($AK47-$D19*(AM52-$AK41)*24)/$D15),"") -> 3.196683134 | AN44: =AN47/$D15*EXP((AN47-$D19*(AQ41-AN41)*24)/$D15) -> 3.34297882 | AO44: =IF(ISNUMBER(AO52),$AN47/$D15*EXP(($AN47-$D19*(AO52-$AN41)*24)/$D15),"") -> 3.34297882 | AP44: =IF(ISNUMBER(AP52),$AN47/$D15*EXP(($AN47-$D19*(AP52-$AN41)*24)/$D15),"") -> 3.34297882 | AQ44: =AQ47/$D15*EXP((AQ47-$D19*(AT41-AQ41)*24)/$D15) -> 3.474109491 | AR44: =IF(ISNUMBER(AR52),$AQ47/$D15*EXP(($AQ47-$D19*(AR52-$AQ41)*24)/$D15),"") -> 3.474109491 | AS44: =IF(ISNUMBER(AS52),$AQ47/$D15*EXP(($AQ47-$D19*(AS52-$AQ41)*24)/$D15),"") -> 3.474109491 | AT44: =AT47/$D15*EXP((AT47-$D19*(AW41-AT41)*24)/$D15) -> 3.591421012 | AU44: =IF(ISNUMBER(AU52),$AT47/$D15*EXP(($AT47-$D19*(AU52-$AT41)*24)/$D15),"") -> 3.591421012 | AV44: =IF(ISNUMBER(AV52),$AT47/$D15*EXP(($AT47-$D19*(AV52-$AT41)*24)/$D15),"") -> 3.591421012 | AW44: =AW47/$D15*EXP((AW47-$D19*(AZ41-AW41)*24)/$D15) -> 3.696197213 | AX44: =IF(ISNUMBER(AX52),$AW47/$D15*EXP(($AW47-$D19*(AX52-$AW41)*24)/$D15),"") -> 3.696197213 | AY44: =IF(ISNUMBER(AY52),$AW47/$D15*EXP(($AW47-$D19*(AY52-$AW41)*24)/$D15),"") -> 3.696197213 | AZ44: =AZ47/$D15*EXP((AZ47-$D19*(BC41-AZ41)*24)/$D15) -> 3.789645559 | BA44: =IF(ISNUMBER(BA52),$AZ47/$D15*EXP(($AZ47-$D19*(BA52-$AZ41)*24)/$D15),"") -> 3.789645559 | BB44: =IF(ISNUMBER(BB52),$AZ47/$D15*EXP(($AZ47-$D19*(BB52-$AZ41)*24)/$D15),"") -> 3.789645559 | BC44: =BC47/$D15*EXP((BC47-$D19*(BF41-BC41)*24)/$D15) -> 3.872889483 | BD44: =IF(ISNUMBER(BD52),$BC47/$D15*EXP(($BC47-$D19*(BD52-$BC41)*24)/$D15),"") -> 3.872889483 | BE44: =IF(ISNUMBER(BE52),$BC47/$D15*EXP(($BC47-$D19*(BE52-$BC41)*24)/$D15),"") -> 3.872889483 | BF44: =BF47/$D15*EXP((BF47-$D19*(BI41-BF41)*24)/$D15) -> 3.946965413 | BG44: =IF(ISNUMBER(BG52),$BF47/$D15*EXP(($BF47-$D19*(BG52-$BF41)*24)/$D15),"") -> 3.946965413 | BH44: =IF(ISNUMBER(BH52),$BF47/$D15*EXP(($BF47-$D19*(BH52-$BF41)*24)/$D15),"") -> 3.946965413 | BI44: =BI47/$D15*EXP((BI47-$D19*(BL41-BI41)*24)/$D15) -> 4.012823054 | BJ44: =IF(ISNUMBER(BJ52),$BI47/$D15*EXP(($BI47-$D19*(BJ52-$BI41)*24)/$D15),"") -> 4.012823054 | BK44: =IF(ISNUMBER(BK52),$BI47/$D15*EXP(($BI47-$D19*(BK52-$BI41)*24)/$D15),"") -> 4.012823054 | BL44: =BL47/$D15*EXP((BL47-$D19*(BO41-BL41)*24)/$D15) -> 4.071327868 | BM44: =IF(ISNUMBER(BM52),$BL47/$D15*EXP(($BL47-$D19*(BM52-$BL41)*24)/$D15),"") -> 4.071327868 | BN44: =IF(ISNUMBER(BN52),$BL47/$D15*EXP(($BL47-$D19*(BN52-$BL41)*24)/$D15),"") -> 4.071327868 | BO44: =BO47/$D15*EXP((BO47-$D19*$C22)/$D15) -> 4.123264988 | BP44: =IF(ISNUMBER(BP52),$BO47/$D15*EXP(($BO47-$D19*(BP52-$BO41)*24)/$D15),"") -> 4.123264988 | BQ44: =IF(ISNUMBER(BQ52),$BO47/$D15*EXP(($BO47-$D19*(BQ52-$BO41)*24)/$D15),"") -> 4.123264988 | BR44: =BR47/$D15*EXP((BR47-$D19*(BU41-BR41)*24)/$D15) -> 4.169344004 | BS44: =IF(ISNUMBER(BS52),$BR47/$D15*EXP(($BR47-$D19*(BS52-$BR41)*24)/$D15),"") -> 4.169344004 | BT44: =IF(ISNUMBER(BT52),$BR47/$D15*EXP(($BR47-$D19*(BT52-$BR41)*24)/$D15),"") -> 4.169344004 | BU44: =BU47/$D15*EXP((BU47-$D19*(BX41-BU41)*24)/$D15) -> 4.210204213 | BV44: =IF(ISNUMBER(BV52),$BU47/$D15*EXP(($BU47-$D19*(BV52-$BU41)*24)/$D15),"") -> 4.210204213 | BW44: =IF(ISNUMBER(BW52),$BU47/$D15*EXP(($BU47-$D19*(BW52-$BU41)*24)/$D15),"") -> 4.210204213 | BX44: =BX47/$D15*EXP((BX47-$D19*(CA41-BX41)*24)/$D15) -> 4.246420053 | BY44: =IF(ISNUMBER(BY52),$BX47/$D15*EXP(($BX47-$D19*(BY52-$BX41)*24)/$D15),"") -> 4.246420053 | BZ44: =IF(ISNUMBER(BZ52),$BX47/$D15*EXP(($BX47-$D19*(BZ52-$BX41)*24)/$D15),"") -> 4.246420053 | CA44: =CA47/$D15*EXP((CA47-$D19*(CD41-CA41)*24)/$D15) -> 4.278506521 | CB44: =IF(ISNUMBER(CB52),$CA47/$D15*EXP(($CA47-$D19*(CB52-$CA41)*24)/$D15),"") -> 4.278506521 | CC44: =IF(ISNUMBER(CC52),$CA47/$D15*EXP(($CA47-$D19*(CC52-$CA41)*24)/$D15),"") -> 4.278506521 | CD44: =CD47/$D15*EXP((CD47-$D19*(CG41-CD41)*24)/$D15) -> 4.306924431 | CE44: =IF(ISNUMBER(CE52),$CD47/$D15*EXP(($CD47-$D19*(CE52-$CD41)*24)/$D15),"") -> 4.306924431 | CF44: =IF(ISNUMBER(CF52),$CD47/$D15*EXP(($CD47-$D19*(CF52-$CD41)*24)/$D15),"") -> 4.306924431 | CG44: =CG47/$D15*EXP((CG47-$D19*(CJ41-CG41)*24)/$D15) -> 4.332085437 | CH44: =IF(ISNUMBER(CH52),$CG47/$D15*EXP(($CG47-$D19*(CH52-$CG41)*24)/$D15),"") -> 4.332085437 | CI44: =IF(ISNUMBER(CI52),$CG47/$D15*EXP(($CG47-$D19*(CI52-$CG41)*24)/$D15),"") -> 4.332085437 | CJ44: =CJ47/$D15*EXP((CJ47-$D19*(CM41-CJ41)*24)/$D15) -> 4.354356752 | CK44: =IF(ISNUMBER(CK52),$CJ47/$D15*EXP(($CJ47-$D19*(CK52-$CJ41)*24)/$D15),"") -> 4.354356752 | CL44: =IF(ISNUMBER(CL52),$CJ47/$D15*EXP(($CJ47-$D19*(CL52-$CJ41)*24)/$D15),"") -> 4.354356752 | CM44: =CM47/$D15*EXP((CM47-$D19*(CN41-CM41)*24)/$D15) ->  | CN44: =CN47/$D15*EXP((CN47-$D19*(CO41-CN41)*24)/$D15) ->  | EZ44: =EZ47/$D15*EXP((EZ47-$D19*(FA41-EZ41)*24)/$D15) -> 
B45: Wo of x | C45: =IF(C53>0,1.4586887*LN(1.2*C44/(LN(2.4*C44/(LN(1+2.4*C44)))))-0.4586887*LN(2*C44/(LN(1+2*C44))),"") ->  | D45: =1.4586887*LN(1.2*D44/(LN(2.4*D44/(LN(1+2.4*D44)))))-0.4586887*LN(2*D44/(LN(1+2*D44))) -> 0.2562605343 | E45: =IF(ISNUMBER(E44),1.4586887*LN(1.2*E44/(LN(2.4*E44/(LN(1+2.4*E44)))))-0.4586887*LN(2*E44/(LN(1+2*E44))),"") -> 0.2562605343 | F45: =IF(ISNUMBER(F44),1.4586887*LN(1.2*F44/(LN(2.4*F44/(LN(1+2.4*F44)))))-0.4586887*LN(2*F44/(LN(1+2*F44))),"") -> 0.2562605343 | G45: =1.4586887*LN(1.2*G44/(LN(2.4*G44/(LN(1+2.4*G44)))))-0.4586887*LN(2*G44/(LN(1+2*G44))) -> 0.4356608126 | H45: =IF(ISNUMBER(H44),1.4586887*LN(1.2*H44/(LN(2.4*H44/(LN(1+2.4*H44)))))-0.4586887*LN(2*H44/(LN(1+2*H44))),"") -> 0.4356608126 | I45: =IF(ISNUMBER(I44),1.4586887*LN(1.2*I44/(LN(2.4*I44/(LN(1+2.4*I44)))))-0.4586887*LN(2*I44/(LN(1+2*I44))),"") -> 0.4356608126 | J45: =1.4586887*LN(1.2*J44/(LN(2.4*J44/(LN(1+2.4*J44)))))-0.4586887*LN(2*J44/(LN(1+2*J44))) -> 0.5712637319 | K45: =IF(ISNUMBER(K44),1.4586887*LN(1.2*K44/(LN(2.4*K44/(LN(1+2.4*K44)))))-0.4586887*LN(2*K44/(LN(1+2*K44))),"") -> 0.5712637319 | L45: =IF(ISNUMBER(L44),1.4586887*LN(1.2*L44/(LN(2.4*L44/(LN(1+2.4*L44)))))-0.4586887*LN(2*L44/(LN(1+2*L44))),"") -> 0.5712637319 | M45: 0.6781233394 | N45: =IF(ISNUMBER(N44),1.4586887*LN(1.2*N44/(LN(2.4*N44/(LN(1+2.4*N44)))))-0.4586887*LN(2*N44/(LN(1+2*N44))),"") -> 0.6781233394 | O45: =IF(ISNUMBER(O44),1.4586887*LN(1.2*O44/(LN(2.4*O44/(LN(1+2.4*O44)))))-0.4586887*LN(2*O44/(LN(1+2*O44))),"") -> 0.6781233394 | P45: 0.7645750357 | Q45: =IF(ISNUMBER(Q44),1.4586887*LN(1.2*Q44/(LN(2.4*Q44/(LN(1+2.4*Q44)))))-0.4586887*LN(2*Q44/(LN(1+2*Q44))),"") -> 0.7645750357 | R45: =IF(ISNUMBER(R44),1.4586887*LN(1.2*R44/(LN(2.4*R44/(LN(1+2.4*R44)))))-0.4586887*LN(2*R44/(LN(1+2*R44))),"") -> 0.7645750357 | S45: 0.835791295 | T45: =IF(ISNUMBER(T44),1.4586887*LN(1.2*T44/(LN(2.4*T44/(LN(1+2.4*T44)))))-0.4586887*LN(2*T44/(LN(1+2*T44))),"") -> 0.835791295 | U45: =IF(ISNUMBER(U44),1.4586887*LN(1.2*U44/(LN(2.4*U44/(LN(1+2.4*U44)))))-0.4586887*LN(2*U44/(LN(1+2*U44))),"") -> 0.835791295 | V45: 0.8952324746 | W45: =IF(ISNUMBER(W44),1.4586887*LN(1.2*W44/(LN(2.4*W44/(LN(1+2.4*W44)))))-0.4586887*LN(2*W44/(LN(1+2*W44))),"") -> 0.8952324746 | X45: =IF(ISNUMBER(X44),1.4586887*LN(1.2*X44/(LN(2.4*X44/(LN(1+2.4*X44)))))-0.4586887*LN(2*X44/(LN(1+2*X44))),"") -> 0.8952324746 | Y45: 0.9453403995 | Z45: =IF(ISNUMBER(Z44),1.4586887*LN(1.2*Z44/(LN(2.4*Z44/(LN(1+2.4*Z44)))))-0.4586887*LN(2*Z44/(LN(1+2*Z44))),"") -> 0.9453403995 | AA45: =IF(ISNUMBER(AA44),1.4586887*LN(1.2*AA44/(LN(2.4*AA44/(LN(1+2.4*AA44)))))-0.4586887*LN(2*AA44/(LN(1+2*AA44))),"") -> 0.9453403995 | AB45: 0.9879080244 | AC45: =IF(ISNUMBER(AC44),1.4586887*LN(1.2*AC44/(LN(2.4*AC44/(LN(1+2.4*AC44)))))-0.4586887*LN(2*AC44/(LN(1+2*AC44))),"") -> 0.9879080244 | AD45: =IF(ISNUMBER(AD44),1.4586887*LN(1.2*AD44/(LN(2.4*AD44/(LN(1+2.4*AD44)))))-0.4586887*LN(2*AD44/(LN(1+2*AD44))),"") -> 0.9879080244 | AE45: 1.02429283 | AF45: =IF(ISNUMBER(AF44),1.4586887*LN(1.2*AF44/(LN(2.4*AF44/(LN(1+2.4*AF44)))))-0.4586887*LN(2*AF44/(LN(1+2*AF44))),"") -> 1.02429283 | AG45: =IF(ISNUMBER(AG44),1.4586887*LN(1.2*AG44/(LN(2.4*AG44/(LN(1+2.4*AG44)))))-0.4586887*LN(2*AG44/(LN(1+2*AG44))),"") -> 1.02429283 | AH45: 1.055547812 | AI45: =IF(ISNUMBER(AI44),1.4586887*LN(1.2*AI44/(LN(2.4*AI44/(LN(1+2.4*AI44)))))-0.4586887*LN(2*AI44/(LN(1+2*AI44))),"") -> 1.055547812 | AJ45: =IF(ISNUMBER(AJ44),1.4586887*LN(1.2*AJ44/(LN(2.4*AJ44/(LN(1+2.4*AJ44)))))-0.4586887*LN(2*AJ44/(LN(1+2*AJ44))),"") -> 1.055547812 | AK45: 1.082505908 | AL45: =IF(ISNUMBER(AL44),1.4586887*LN(1.2*AL44/(LN(2.4*AL44/(LN(1+2.4*AL44)))))-0.4586887*LN(2*AL44/(LN(1+2*AL44))),"") -> 1.082505908 | AM45: =IF(ISNUMBER(AM44),1.4586887*LN(1.2*AM44/(LN(2.4*AM44/(LN(1+2.4*AM44)))))-0.4586887*LN(2*AM44/(LN(1+2*AM44))),"") -> 1.082505908 | AN45: 1.105836626 | AO45: =IF(ISNUMBER(AO44),1.4586887*LN(1.2*AO44/(LN(2.4*AO44/(LN(1+2.4*AO44)))))-0.4586887*LN(2*AO44/(LN(1+2*AO44))),"") -> 1.105836626 | AP45: =IF(ISNUMBER(AP44),1.4586887*LN(1.2*AP44/(LN(2.4*AP44/(LN(1+2.4*AP44)))))-0.4586887*LN(2*AP44/(LN(1+2*AP44))),"") -> 1.105836626 | AQ45: 1.126085304 | AR45: =IF(ISNUMBER(AR44),1.4586887*LN(1.2*AR44/(LN(2.4*AR44/(LN(1+2.4*AR44)))))-0.4586887*LN(2*AR44/(LN(1+2*AR44))),"") -> 1.126085304 | AS45: =IF(ISNUMBER(AS44),1.4586887*LN(1.2*AS44/(LN(2.4*AS44/(LN(1+2.4*AS44)))))-0.4586887*LN(2*AS44/(LN(1+2*AS44))),"") -> 1.126085304 | AT45: 1.143701115 | AU45: =IF(ISNUMBER(AU44),1.4586887*LN(1.2*AU44/(LN(2.4*AU44/(LN(1+2.4*AU44)))))-0.4586887*LN(2*AU44/(LN(1+2*AU44))),"") -> 1.143701115 | AV45: =IF(ISNUMBER(AV44),1.4586887*LN(1.2*AV44/(LN(2.4*AV44/(LN(1+2.4*AV44)))))-0.4586887*LN(2*AV44/(LN(1+2*AV44))),"") -> 1.143701115 | AW45: 1.159057507 | AX45: =IF(ISNUMBER(AX44),1.4586887*LN(1.2*AX44/(LN(2.4*AX44/(LN(1+2.4*AX44)))))-0.4586887*LN(2*AX44/(LN(1+2*AX44))),"") -> 1.159057507 | AY45: =IF(ISNUMBER(AY44),1.4586887*LN(1.2*AY44/(LN(2.4*AY44/(LN(1+2.4*AY44)))))-0.4586887*LN(2*AY44/(LN(1+2*AY44))),"") -> 1.159057507 | AZ45: 1.172467464 | BA45: =IF(ISNUMBER(BA44),1.4586887*LN(1.2*BA44/(LN(2.4*BA44/(LN(1+2.4*BA44)))))-0.4586887*LN(2*BA44/(LN(1+2*BA44))),"") -> 1.172467464 | BB45: =IF(ISNUMBER(BB44),1.4586887*LN(1.2*BB44/(LN(2.4*BB44/(LN(1+2.4*BB44)))))-0.4586887*LN(2*BB44/(LN(1+2*BB44))),"") -> 1.172467464 | BC45: 1.184195089 | BD45: =IF(ISNUMBER(BD44),1.4586887*LN(1.2*BD44/(LN(2.4*BD44/(LN(1+2.4*BD44)))))-0.4586887*LN(2*BD44/(LN(1+2*BD44))),"") -> 1.184195089 | BE45: =IF(ISNUMBER(BE44),1.4586887*LN(1.2*BE44/(LN(2.4*BE44/(LN(1+2.4*BE44)))))-0.4586887*LN(2*BE44/(LN(1+2*BE44))),"") -> 1.184195089 | BF45: 1.194464545 | BG45: =IF(ISNUMBER(BG44),1.4586887*LN(1.2*BG44/(LN(2.4*BG44/(LN(1+2.4*BG44)))))-0.4586887*LN(2*BG44/(LN(1+2*BG44))),"") -> 1.194464545 | BH45: =IF(ISNUMBER(BH44),1.4586887*LN(1.2*BH44/(LN(2.4*BH44/(LN(1+2.4*BH44)))))-0.4586887*LN(2*BH44/(LN(1+2*BH44))),"") -> 1.194464545 | BI45: 1.203467061 | BJ45: =IF(ISNUMBER(BJ44),1.4586887*LN(1.2*BJ44/(LN(2.4*BJ44/(LN(1+2.4*BJ44)))))-0.4586887*LN(2*BJ44/(LN(1+2*BJ44))),"") -> 1.203467061 | BK45: =IF(ISNUMBER(BK44),1.4586887*LN(1.2*BK44/(LN(2.4*BK44/(LN(1+2.4*BK44)))))-0.4586887*LN(2*BK44/(LN(1+2*BK44))),"") -> 1.203467061 | BL45: 1.211366483 | BM45: =IF(ISNUMBER(BM44),1.4586887*LN(1.2*BM44/(LN(2.4*BM44/(LN(1+2.4*BM44)))))-0.4586887*LN(2*BM44/(LN(1+2*BM44))),"") -> 1.211366483 | BN45: =IF(ISNUMBER(BN44),1.4586887*LN(1.2*BN44/(LN(2.4*BN44/(LN(1+2.4*BN44)))))-0.4586887*LN(2*BN44/(LN(1+2*BN44))),"") -> 1.211366483 | BO45: 1.218303728 | BP45: =IF(ISNUMBER(BP44),1.4586887*LN(1.2*BP44/(LN(2.4*BP44/(LN(1+2.4*BP44)))))-0.4586887*LN(2*BP44/(LN(1+2*BP44))),"") -> 1.218303728 | BQ45: =IF(ISNUMBER(BQ44),1.4586887*LN(1.2*BQ44/(LN(2.4*BQ44/(LN(1+2.4*BQ44)))))-0.4586887*LN(2*BQ44/(LN(1+2*BQ44))),"") -> 1.218303728 | BR45: 1.224400392 | BS45: =IF(ISNUMBER(BS44),1.4586887*LN(1.2*BS44/(LN(2.4*BS44/(LN(1+2.4*BS44)))))-0.4586887*LN(2*BS44/(LN(1+2*BS44))),"") -> 1.224400392 | BT45: =IF(ISNUMBER(BT44),1.4586887*LN(1.2*BT44/(LN(2.4*BT44/(LN(1+2.4*BT44)))))-0.4586887*LN(2*BT44/(LN(1+2*BT44))),"") -> 1.224400392 | BU45: 1.2297617 | BV45: =IF(ISNUMBER(BV44),1.4586887*LN(1.2*BV44/(LN(2.4*BV44/(LN(1+2.4*BV44)))))-0.4586887*LN(2*BV44/(LN(1+2*BV44))),"") -> 1.2297617 | BW45: =IF(ISNUMBER(BW44),1.4586887*LN(1.2*BW44/(LN(2.4*BW44/(LN(1+2.4*BW44)))))-0.4586887*LN(2*BW44/(LN(1+2*BW44))),"") -> 1.2297617 | BX45: 1.234478939 | BY45: =IF(ISNUMBER(BY44),1.4586887*LN(1.2*BY44/(LN(2.4*BY44/(LN(1+2.4*BY44)))))-0.4586887*LN(2*BY44/(LN(1+2*BY44))),"") -> 1.234478939 | BZ45: =IF(ISNUMBER(BZ44),1.4586887*LN(1.2*BZ44/(LN(2.4*BZ44/(LN(1+2.4*BZ44)))))-0.4586887*LN(2*BZ44/(LN(1+2*BZ44))),"") -> 1.234478939 | CA45: 1.238631478 | CB45: =IF(ISNUMBER(CB44),1.4586887*LN(1.2*CB44/(LN(2.4*CB44/(LN(1+2.4*CB44)))))-0.4586887*LN(2*CB44/(LN(1+2*CB44))),"") -> 1.238631478 | CC45: =IF(ISNUMBER(CC44),1.4586887*LN(1.2*CC44/(LN(2.4*CC44/(LN(1+2.4*CC44)))))-0.4586887*LN(2*CC44/(LN(1+2*CC44))),"") -> 1.238631478 | CD45: 1.242288456 | CE45: =IF(ISNUMBER(CE44),1.4586887*LN(1.2*CE44/(LN(2.4*CE44/(LN(1+2.4*CE44)))))-0.4586887*LN(2*CE44/(LN(1+2*CE44))),"") -> 1.242288456 | CF45: =IF(ISNUMBER(CF44),1.4586887*LN(1.2*CF44/(LN(2.4*CF44/(LN(1+2.4*CF44)))))-0.4586887*LN(2*CF44/(LN(1+2*CF44))),"") -> 1.242288456 | CG45: 1.2455102 | CH45: =IF(ISNUMBER(CH44),1.4586887*LN(1.2*CH44/(LN(2.4*CH44/(LN(1+2.4*CH44)))))-0.4586887*LN(2*CH44/(LN(1+2*CH44))),"") -> 1.2455102 | CI45: =IF(ISNUMBER(CI44),1.4586887*LN(1.2*CI44/(LN(2.4*CI44/(LN(1+2.4*CI44)))))-0.4586887*LN(2*CI44/(LN(1+2*CI44))),"") -> 1.2455102 | CJ45: 1.248349427 | CK45: =IF(ISNUMBER(CK44),1.4586887*LN(1.2*CK44/(LN(2.4*CK44/(LN(1+2.4*CK44)))))-0.4586887*LN(2*CK44/(LN(1+2*CK44))),"") -> 1.248349427 | CL45: =IF(ISNUMBER(CL44),1.4586887*LN(1.2*CL44/(LN(2.4*CL44/(LN(1+2.4*CL44)))))-0.4586887*LN(2*CL44/(LN(1+2*CL44))),"") -> 1.248349427 | DX45: =1.4586887*LN(1.2*DX44/(LN(2.4*DX44/(LN(1+2.4*DX44)))))-0.4586887*LN(2*DX44/(LN(1+2*DX44))) ->  | GJ45: =1.4586887*LN(1.2*GJ44/(LN(2.4*GJ44/(LN(1+2.4*GJ44)))))-0.4586887*LN(2*GJ44/(LN(1+2*GJ44))) -> 
B46: Concentration average | G46: =(J47+J49)/2 -> 2.984641744 | J46: =(M47+M49)/2 -> 3.598956974 | M46: =(P47+P49)/2 -> 4.083057793 | P46: =(S47+S49)/2 -> 4.474705657 | S46: =(V47+V49)/2 -> 4.797333171 | V46: =(Y47+Y49)/2 -> 5.06661662 | Y46: =(AB47+AB49)/2 -> 5.293618086 | AB46: =(AE47+AE49)/2 -> 5.486460102 | AE46: =(AH47+AH49)/2 -> 5.651292396 | AH46: =(AK47+AK49)/2 -> 5.792885303 | AK46: =(AN47+AN49)/2 -> 5.915012238 | AN46: =(AQ47+AQ49)/2 -> 6.020706238 | AQ46: =(AT47+AT49)/2 -> 6.112437831 | AT46: =(AW47+AW49)/2 -> 6.19224187 | AW46: =(AZ47+AZ49)/2 -> 6.261810178 | AZ46: =(BC47+BC49)/2 -> 6.322560647 | BC46: =(BF47+BF49)/2 -> 6.375689728 | BF46: =(BI47+BI49)/2 -> 6.422212939 | BI46: =(BL47+BL49)/2 -> 6.462996594 | BL46: =(BO47+BO49)/2 -> 6.498782958 | BO46: =(BR47+BR49)/2 -> 6.530210417 | BR46: =(BU47+BU49)/2 -> 6.557829832 | BU46: =(BX47+BX49)/2 -> 6.582117901 | BX46: =(CA47+CA49)/2 -> 6.603488178 | CA46: =(CD47+CD49)/2 -> 6.622300223 | CD46: =(CG47+CG49)/2 -> 6.638867248 | CG46: =(CJ47+CJ49)/2 -> 6.653462554 | CJ46: =(CM47+CM49)/2 -> 6.666324965 | CM46: =(CN47+CN49)/2 ->  | DW46: =(DX47+DX49)/2 ->  | GI46: =(GJ47+GJ49)/2 -> 
B47: Peak Expected (mg/L) Just After Dose Time | D47: =D40*$C10/$D14+D49 -> 2.021978022 | G47: =G40*$C10/$D14+G49 -> 3.182902505 | J47: =J40*$C10/$D14+J49 -> 3.995630755 | M47: =M40*$C10/$D14+M49 -> 4.609945985 | P47: =P40*$C10/$D14+P49 -> 5.094046804 | S47: =S40*$C10/$D14+S49 -> 5.485694668 | V47: =V40*$C10/$D14+V49 -> 5.808322182 | Y47: =Y40*$C10/$D14+Y49 -> 6.077605631 | AB47: =AB40*$C10/$D14+AB49 -> 6.304607097 | AE47: =AE40*$C10/$D14+AE49 -> 6.497449113 | AH47: 6.662281407 | AK47: 6.803874314 | AN47: 6.926001249 | AQ47: 7.031695249 | AT47: 7.123426842 | AW47: 7.203230881 | AZ47: 7.272799189 | BC47: 7.333549658 | BF47: 7.386678739 | BI47: 7.43320195 | BL47: 7.473985605 | BO47: 7.509771969 | BR47: 7.541199428 | BU47: 7.568818843 | BX47: 7.593106912 | CA47: 7.614477189 | CD47: 7.633289234 | CG47: 7.649856259 | CJ47: 7.664451565 | CM47: 7.677313976 | EE47: =EE40*$C10/$D14+EE49 ->  | GQ47: =GQ49+$C23/$D14 -> 
D48: Trough Before Dose 1 | G48: Trough Before Dose 2 | J48: Trough Before Dose 3 | M48: Trough Before Dose 4 | P48: Trough Before Dose 5 | S48: Trough Before Dose 6 | V48: Trough Before Dose 7 | Y48: Trough Before Dose 8 | AB48: Trough Before Dose 9 | AE48: Trough Before Dose 10 | AH48: Trough Before Dose 11 | AK48: Trough Before Dose 12 | AN48: Trough Before Dose 13 | AQ48: Trough Before Dose 14 | AT48: Trough Before Dose 15 | AW48: Trough Before Dose 16 | AZ48: Trough Before Dose 17 | BC48: Trough Before Dose 18 | BF48: Trough Before Dose 19 | BI48: Trough Before Dose 20 | BL48: Trough Before Dose 21 | BO48: Trough Before Dose 22 | BR48: Trough Before Dose 23 | BU48: Trough Before Dose 24 | BX48: Trough Before Dose 25 | CA48: Trough Before Dose 26 | CD48: Trough Before Dose 27 | CG48: Trough Before Dose 28 | CJ48: Trough Before Dose 29 | CM48: Trough Before Dose 30 | CN48: Trough Before Dose 31 | CO48: Trough Before Dose 32 | CP48: Trough Before Dose 33 | CQ48: Trough Before Dose 34 | CR48: Trough Before Dose 35 | CS48: Trough Before Dose 36 | CT48: Trough Before Dose 37 | CU48: Trough Before Dose 38 | CV48: Trough Before Dose 39 | CW48: Trough Before Dose 40 | CX48: Trough Before Dose 41 | CY48: Trough Before Dose 42 | CZ48: Trough Before Dose 43 | DA48: Trough Before Dose 44 | DB48: Trough Before Dose 45 | DC48: Trough Before Dose 46 | DD48: Trough Before Dose 47 | DE48: Trough Before Dose 48 | DF48: Trough Before Dose 49 | DG48: Trough Before Dose 50 | DH48: Trough Before Dose 51 | DI48: Trough Before Dose 52 | DJ48: Trough Before Dose 53 | DK48: Trough Before Dose 54 | DL48: Trough Before Dose 55 | DM48: Trough Before Dose 56 | DN48: Trough Before Dose 57 | DO48: Trough Before Dose 58 | DP48: Trough Before Dose 59 | DQ48: Trough Before Dose 60 | DR48: Trough Before Dose 61 | DS48: Trough Before Dose 62 | DT48: Trough Before Dose 63 | DU48: Trough Before Dose 64 | DV48: Trough Before Dose 65 | DW48: Trough Before Dose 66 | DX48: Trough Before Dose 67 | DY48: Trough Before Dose 68 | DZ48: Trough Before Dose 69 | EA48: Trough Before Dose 70 | EB48: Trough Before Dose 71 | EC48: Trough Before Dose 72 | ED48: Trough Before Dose 73 | EE48: Trough Before Dose 74 | EF48: Trough Before Dose 75 | EG48: Trough Before Dose 76 | EH48: Trough Before Dose 77 | EI48: Trough Before Dose 78 | EJ48: Trough Before Dose 79 | EK48: Trough Before Dose 80 | EL48: Trough Before Dose 81 | EM48: Trough Before Dose 82 | EN48: Trough Before Dose 83 | EO48: Trough Before Dose 84 | EP48: Trough Before Dose 85 | EQ48: Trough Before Dose 86 | ER48: Trough Before Dose 87 | ES48: Trough Before Dose 88 | ET48: Trough Before Dose 89 | EU48: Trough Before Dose 90 | EV48: Trough Before Dose 91 | EW48: Trough Before Dose 92 | EX48: Trough Before Dose 93 | EY48: Trough Before Dose 94 | EZ48: Trough Before Dose 95 | FA48: Trough Before Dose 96 | FB48: Trough Before Dose 97 | FC48: Trough Before Dose 98 | FD48: Trough Before Dose 99 | FE48: Trough Before Dose 100 | FF48: Trough Before Dose 101 | FG48: Trough Before Dose 102 | FH48: Trough Before Dose 103 | FI48: Trough Before Dose 104 | FJ48: Trough Before Dose 105 | FK48: Trough Before Dose 106 | FL48: Trough Before Dose 107 | FM48: Trough Before Dose 108 | FN48: Trough Before Dose 109 | FO48: Trough Before Dose 110 | FP48: Trough Before Dose 111 | FQ48: Trough Before Dose 112 | FR48: Trough Before Dose 113 | FS48: Trough Before Dose 114 | FT48: Trough Before Dose 115 | FU48: Trough Before Dose 116 | FV48: Trough Before Dose 117 | FW48: Trough Before Dose 118 | FX48: Trough Before Dose 119 | FY48: Trough Before Dose 120 | FZ48: Trough Before Dose 121 | GA48: Trough Before Dose 122 | GB48: Trough Before Dose 123 | GC48: Trough Before Dose 124 | GD48: Trough Before Dose 125 | GE48: Trough Before Dose 126 | GF48: Trough Before Dose 127 | GG48: Trough Before Dose 128 | GH48: Trough Before Dose 129 | GI48: Trough Before Dose 130 | GJ48: Trough Before Dose 131 | GK48: Trough Before Dose 132 | GL48: Trough Before Dose 133 | GM48: Trough Before Dose 134 | GN48: Trough Before Dose 135 | GO48: Trough Before Dose 136 | GP48: Trough Before Dose 137
B49: Expected Level (mg/L) | D49: =IF($C53>0,$D15*C45,0) -> 0 | E49: =IF(ISNUMBER(E45),$D15*E45,"") -> 1.160924483 | F49: =IF(ISNUMBER(F45),$D15*F45,"") -> 1.160924483 | G49: =$D15*D45 -> 1.160924483 | H49: =IF(ISNUMBER(H45),$D15*H45,"") -> 1.973652733 | I49: =IF(ISNUMBER(I45),$D15*I45,"") -> 1.973652733 | J49: =$D15*G45 -> 1.973652733 | K49: =IF(ISNUMBER(K45),$D15*K45,"") -> 2.587967963 | L49: =IF(ISNUMBER(L45),$D15*L45,"") -> 2.587967963 | M49: =$D15*J45 -> 2.587967963 | N49: =$D15*N45 -> 3.072068782 | O49: =$D15*O45 -> 3.072068782 | P49: =$D15*M45 -> 3.072068782 | Q49: =IF(ISNUMBER(Q45),$D15*Q45,"") -> 3.463716646 | R49: =IF(ISNUMBER(R45),$D15*R45,"") -> 3.463716646 | S49: =$D15*P45 -> 3.463716646 | T49: =IF(ISNUMBER(T45),$D15*T45,"") -> 3.78634416 | U49: =IF(ISNUMBER(U45),$D15*U45,"") -> 3.78634416 | V49: =$D15*S45 -> 3.78634416 | W49: =IF(ISNUMBER(W45),$D15*W45,"") -> 4.05562761 | X49: =IF(ISNUMBER(X45),$D15*X45,"") -> 4.05562761 | Y49: =$D15*V45 -> 4.05562761 | Z49: =IF(ISNUMBER(Z45),$D15*Z45,"") -> 4.282629075 | AA49: =IF(ISNUMBER(AA45),$D15*AA45,"") -> 4.282629075 | AB49: =$D15*Y45 -> 4.282629075 | AC49: =IF(ISNUMBER(AC45),$D15*AC45,"") -> 4.475471091 | AD49: =IF(ISNUMBER(AD45),$D15*AD45,"") -> 4.475471091 | AE49: =$D15*AB45 -> 4.475471091 | AF49: =IF(ISNUMBER(AF45),$D15*AF45,"") -> 4.640303385 | AG49: =IF(ISNUMBER(AG45),$D15*AG45,"") -> 4.640303385 | AH49: =$D15*AE45 -> 4.640303385 | AI49: =IF(ISNUMBER(AI45),$D15*AI45,"") -> 4.781896292 | AJ49: =IF(ISNUMBER(AJ45),$D15*AJ45,"") -> 4.781896292 | AK49: =$D15*AH45 -> 4.781896292 | AL49: =IF(ISNUMBER(AL45),$D15*AL45,"") -> 4.904023227 | AM49: =IF(ISNUMBER(AM45),$D15*AM45,"") -> 4.904023227 | AN49: =$D15*AK45 -> 4.904023227 | AO49: =IF(ISNUMBER(AO45),$D15*AO45,"") -> 5.009717227 | AP49: =IF(ISNUMBER(AP45),$D15*AP45,"") -> 5.009717227 | AQ49: =$D15*AN45 -> 5.009717227 | AR49: =IF(ISNUMBER(AR45),$D15*AR45,"") -> 5.10144882 | AS49: =IF(ISNUMBER(AS45),$D15*AS45,"") -> 5.10144882 | AT49: =$D15*AQ45 -> 5.10144882 | AU49: =IF(ISNUMBER(AU45),$D15*AU45,"") -> 5.181252859 | AV49: =IF(ISNUMBER(AV45),$D15*AV45,"") -> 5.181252859 | AW49: =$D15*AT45 -> 5.181252859 | AX49: =IF(ISNUMBER(AX45),$D15*AX45,"") -> 5.250821167 | AY49: =IF(ISNUMBER(AY45),$D15*AY45,"") -> 5.250821167 | AZ49: =$D15*AW45 -> 5.250821167 | BA49: =IF(ISNUMBER(BA45),$D15*BA45,"") -> 5.311571636 | BB49: =IF(ISNUMBER(BB45),$D15*BB45,"") -> 5.311571636 | BC49: =$D15*AZ45 -> 5.311571636 | BD49: =IF(ISNUMBER(BD45),$D15*BD45,"") -> 5.364700717 | BE49: =IF(ISNUMBER(BE45),$D15*BE45,"") -> 5.364700717 | BF49: =$D15*BC45 -> 5.364700717 | BG49: =IF(ISNUMBER(BG45),$D15*BG45,"") -> 5.411223928 | BH49: =IF(ISNUMBER(BH45),$D15*BH45,"") -> 5.411223928 | BI49: =$D15*BF45 -> 5.411223928 | BJ49: =IF(ISNUMBER(BJ45),$D15*BJ45,"") -> 5.452007583 | BK49: =IF(ISNUMBER(BK45),$D15*BK45,"") -> 5.452007583 | BL49: =$D15*BI45 -> 5.452007583 | BM49: =IF(ISNUMBER(BM45),$D15*BM45,"") -> 5.487793947 | BN49: =IF(ISNUMBER(BN45),$D15*BN45,"") -> 5.487793947 | BO49: =$D15*BL45 -> 5.487793947 | BP49: =IF(ISNUMBER(BP45),$D15*BP45,"") -> 5.519221406 | BQ49: =IF(ISNUMBER(BQ45),$D15*BQ45,"") -> 5.519221406 | BR49: =$D15*BO45 -> 5.519221406 | BS49: =IF(ISNUMBER(BS45),$D15*BS45,"") -> 5.546840821 | BT49: =IF(ISNUMBER(BT45),$D15*BT45,"") -> 5.546840821 | BU49: =$D15*BR45 -> 5.546840821 | BV49: =IF(ISNUMBER(BV45),$D15*BV45,"") -> 5.57112889 | BW49: =IF(ISNUMBER(BW45),$D15*BW45,"") -> 5.57112889 | BX49: =$D15*BU45 -> 5.57112889 | BY49: =IF(ISNUMBER(BY45),$D15*BY45,"") -> 5.592499167 | BZ49: =IF(ISNUMBER(BZ45),$D15*BZ45,"") -> 5.592499167 | CA49: =$D15*BX45 -> 5.592499167 | CB49: =IF(ISNUMBER(CB45),$D15*CB45,"") -> 5.611311212 | CC49: =IF(ISNUMBER(CC45),$D15*CC45,"") -> 5.611311212 | CD49: =$D15*CA45 -> 5.611311212 | CE49: =IF(ISNUMBER(CE45),$D15*CE45,"") -> 5.627878237 | CF49: =IF(ISNUMBER(CF45),$D15*CF45,"") -> 5.627878237 | CG49: =$D15*CD45 -> 5.627878237 | CH49: =IF(ISNUMBER(CH45),$D15*CH45,"") -> 5.642473543 | CI49: =IF(ISNUMBER(CI45),$D15*CI45,"") -> 5.642473543 | CJ49: =$D15*CG45 -> 5.642473543 | CK49: =IF(ISNUMBER(CK45),$D15*CK45,"") -> 5.655335954 | CL49: =IF(ISNUMBER(CL45),$D15*CL45,"") -> 5.655335954 | CM49: =IF(ISNUMBER(CJ45),$D15*CJ45,"") -> 5.655335954 | CN49: =IF(ISNUMBER(CM45),$D15*CM45,"") ->  | CO49: =IF(ISNUMBER(CN45),$D15*CN45,"") ->  | CP49: =IF(ISNUMBER(CO45),$D15*CO45,"") ->  | FB49: =IF(ISNUMBER(FA45),$D15*FA45,"") ->  | GP49: =IF(ISNUMBER(GO45),$D15*GO45,"") ->  | GQ49: =$D15*GP45 -> 
A50: Hide | D50: =D49 -> 0 | G50: =G49 -> 1.160924483 | J50: =J49 -> 1.973652733 | M50: =M49 -> 2.587967963 | P50: =P49 -> 3.072068782 | S50: =S49 -> 3.463716646 | V50: =V49 -> 3.78634416 | Y50: =Y49 -> 4.05562761 | AB50: =AB49 -> 4.282629075 | AE50: =AE49 -> 4.475471091 | AH50: =AH49 -> 4.640303385 | AK50: =AK49 -> 4.781896292 | AN50: =AN49 -> 4.904023227 | AQ50: =AQ49 -> 5.009717227 | AT50: =AT49 -> 5.10144882 | AW50: =AW49 -> 5.181252859 | AZ50: =AZ49 -> 5.250821167 | BC50: =BC49 -> 5.311571636 | BF50: =BF49 -> 5.364700717 | BI50: =BI49 -> 5.411223928 | BL50: =BL49 -> 5.452007583 | BO50: =BO49 -> 5.487793947 | BR50: =BR49 -> 5.519221406 | BU50: =BU49 -> 5.546840821 | BX50: =BX49 -> 5.57112889 | CA50: =CA49 -> 5.592499167 | CD50: =CD49 -> 5.611311212 | CG50: =CG49 -> 5.627878237 | CJ50: =CJ49 -> 5.642473543 | CM50: =CM49 -> 5.655335954 | CN50: =CN49 ->  | EZ50: =EZ49 -> 
C51: Time of Level & Level Before 1st Dose
B52: Input Date/Time of Level month/day/year (xx/xx/xx) | D52: Input Date/Time of Level month/day/year (xx/xx/xx) | E52: =G41 -> 2023-08-01T12:00:00 | F52: =G41 -> 2023-08-01T12:00:00 | H52: =J41 -> 2023-08-01T18:00:00 | I52: =J41 -> 2023-08-01T18:00:00 | K52: =M41 -> 2023-08-02 | L52: =M41 -> 2023-08-02 | N52: =P41 -> 2023-08-02T06:00:00 | O52: =P41 -> 2023-08-02T06:00:00 | Q52: =S41 -> 2023-08-02T12:00:00 | R52: =S41 -> 2023-08-02T12:00:00 | T52: =V41 -> 2023-08-02T18:00:00 | U52: =V41 -> 2023-08-02T18:00:00 | W52: =Y41 -> 2023-08-03 | X52: =Y41 -> 2023-08-03 | Z52: =AB41 -> 2023-08-03T06:00:00 | AA52: =AB41 -> 2023-08-03T06:00:00 | AC52: =AE41 -> 2023-08-03T12:00:00 | AD52: =AE41 -> 2023-08-03T12:00:00 | AF52: =AH41 -> 2023-08-03T18:00:00 | AG52: =AH41 -> 2023-08-03T18:00:00 | AI52: =AK41 -> 2023-08-04 | AJ52: =AK41 -> 2023-08-04 | AL52: =AN41 -> 2023-08-04T06:00:00 | AM52: =AN41 -> 2023-08-04T06:00:00 | AO52: =AQ41 -> 2023-08-04T12:00:00 | AP52: =AQ41 -> 2023-08-04T12:00:00 | AR52: =AT41 -> 2023-08-04T18:00:00 | AS52: =AT41 -> 2023-08-04T18:00:00 | AU52: =AW41 -> 2023-08-05 | AV52: =AW41 -> 2023-08-05 | AX52: =AZ41 -> 2023-08-05T06:00:00 | AY52: =AZ41 -> 2023-08-05T06:00:00 | BA52: =BC41 -> 2023-08-05T12:00:00 | BB52: =BC41 -> 2023-08-05T12:00:00 | BD52: =BF41 -> 2023-08-05T18:00:00 | BE52: =BF41 -> 2023-08-05T18:00:00 | BG52: =BI41 -> 2023-08-06 | BH52: =BI41 -> 2023-08-06 | BJ52: =BL41 -> 2023-08-06T06:00:00 | BK52: =BL41 -> 2023-08-06T06:00:00 | BM52: =BO41 -> 2023-08-06T12:00:00 | BN52: =BO41 -> 2023-08-06T12:00:00 | BP52: =BR41 -> 2023-08-06T18:00:00 | BQ52: =BR41 -> 2023-08-06T18:00:00 | BS52: =BU41 -> 2023-08-07 | BT52: =BU41 -> 2023-08-07 | BV52: =BX41 -> 2023-08-07T06:00:00 | BW52: =BX41 -> 2023-08-07T06:00:00 | BY52: =CA41 -> 2023-08-07T12:00:00 | BZ52: =CA41 -> 2023-08-07T12:00:00 | CB52: =CD41 -> 2023-08-07T18:00:00 | CC52: =CD41 -> 2023-08-07T18:00:00 | CE52: =CG41 -> 2023-08-08 | CF52: =CG41 -> 2023-08-08 | CH52: =CJ41 -> 2023-08-08T06:00:00 | CI52: =CJ41 -> 2023-08-08T06:00:00 | CK52: =CM41 -> 2023-08-08T12:00:00 | CL52: =CM41 -> 2023-08-08T12:00:00
B53: Input Measured Level (mg/L) | D53: Input Measured Level (mg/L) | Y53: 4
A56: Hide | B56: Square of Peak Errors | D56: =IF(ISNUMBER(#REF!),((#REF!-D47)^2)/(0.1*(D47))^2,"") ->  | E56: =IF(ISNUMBER(#REF!),((#REF!-G47)^2)/(0.1*(G47))^2,"") ->  | H56: =IF(ISNUMBER(#REF!),((#REF!-J47)^2)/(0.1*(J47))^2,"") ->  | K56: =IF(ISNUMBER(#REF!),((#REF!-M47)^2)/(0.1*(M47))^2,"") ->  | N56: =IF(ISNUMBER(#REF!),((#REF!-P47)^2)/(0.1*(P47))^2,"") ->  | O56: =IF(ISNUMBER(#REF!),((#REF!-S47)^2)/(0.1*(S47))^2,"") ->  | P56: =IF(ISNUMBER(#REF!),((#REF!-V47)^2)/(0.1*(V47))^2,"") ->  | Q56: =IF(ISNUMBER(#REF!),((#REF!-Y47)^2)/(0.1*(Y47))^2,"") ->  | R56: =IF(ISNUMBER(#REF!),((#REF!-AB47)^2)/(0.1*(AB47))^2,"") ->  | S56: =IF(ISNUMBER(#REF!),((#REF!-AE47)^2)/(0.1*(AE47))^2,"") ->  | V56: =IF(ISNUMBER(#REF!),((#REF!-AH47)^2)/(0.1*(AH47))^2,"") ->  | Y56: =IF(ISNUMBER(#REF!),((#REF!-AK47)^2)/(0.1*(AK47))^2,"") ->  | AB56: =IF(ISNUMBER(#REF!),((#REF!-AN47)^2)/(0.1*(AN47))^2,"") ->  | AE56: =IF(ISNUMBER(#REF!),((#REF!-AQ47)^2)/(0.1*(AQ47))^2,"") ->  | AH56: =IF(ISNUMBER(#REF!),((#REF!-AT47)^2)/(0.1*(AT47))^2,"") ->  | AK56: =IF(ISNUMBER(#REF!),((#REF!-AW47)^2)/(0.1*(AW47))^2,"") ->  | AN56: =IF(ISNUMBER(#REF!),((#REF!-AZ47)^2)/(0.1*(AZ47))^2,"") ->  | AQ56: =IF(ISNUMBER(#REF!),((#REF!-BC47)^2)/(0.1*(BC47))^2,"") ->  | AT56: =IF(ISNUMBER(#REF!),((#REF!-BF47)^2)/(0.1*(BF47))^2,"") ->  | AW56: =IF(ISNUMBER(#REF!),((#REF!-BI47)^2)/(0.1*(BI47))^2,"") ->  | AZ56: =IF(ISNUMBER(#REF!),((#REF!-BL47)^2)/(0.1*(BL47))^2,"") ->  | BC56: =IF(ISNUMBER(#REF!),((#REF!-BO47)^2)/(0.1*(BO47))^2,"") ->  | BF56: =IF(ISNUMBER(#REF!),((#REF!-BR47)^2)/(0.1*(BR47))^2,"") ->  | BI56: =IF(ISNUMBER(#REF!),((#REF!-BU47)^2)/(0.1*(BU47))^2,"") ->  | BL56: =IF(ISNUMBER(#REF!),((#REF!-BX47)^2)/(0.1*(BX47))^2,"") ->  | BO56: =IF(ISNUMBER(#REF!),((#REF!-CA47)^2)/(0.1*(CA47))^2,"") ->  | BR56: =IF(ISNUMBER(#REF!),((#REF!-CD47)^2)/(0.1*(CD47))^2,"") ->  | BU56: =IF(ISNUMBER(#REF!),((#REF!-CG47)^2)/(0.1*(CG47))^2,"") ->  | BX56: =IF(ISNUMBER(#REF!),((#REF!-CJ47)^2)/(0.1*(CJ47))^2,"") ->  | CA56: =IF(ISNUMBER(#REF!),((#REF!-CM47)^2)/(0.1*(CM47))^2,"") ->  | CD56: =IF(ISNUMBER(#REF!),((#REF!-CN47)^2)/(0.1*(CN47))^2,"") ->  | CG56: =IF(ISNUMBER(#REF!),((#REF!-CO47)^2)/(0.1*(CO47))^2,"") ->  | CJ56: =IF(ISNUMBER(#REF!),((#REF!-CP47)^2)/(0.1*(CP47))^2,"") ->  | CM56: =IF(ISNUMBER(#REF!),((#REF!-CQ47)^2)/(0.1*(CQ47))^2,"") ->  | CN56: =IF(ISNUMBER(#REF!),((#REF!-CR47)^2)/(0.1*(CR47))^2,"") ->  | CO56: =IF(ISNUMBER(#REF!),((#REF!-CS47)^2)/(0.1*(CS47))^2,"") ->  | CP56: =IF(ISNUMBER(#REF!),((#REF!-CT47)^2)/(0.1*(CT47))^2,"") ->  | CQ56: =IF(ISNUMBER(#REF!),((#REF!-CU47)^2)/(0.1*(CU47))^2,"") ->  | CR56: =IF(ISNUMBER(#REF!),((#REF!-CV47)^2)/(0.1*(CV47))^2,"") ->  | CS56: =IF(ISNUMBER(#REF!),((#REF!-CW47)^2)/(0.1*(CW47))^2,"") ->  | CT56: =IF(ISNUMBER(#REF!),((#REF!-CX47)^2)/(0.1*(CX47))^2,"") ->  | CU56: =IF(ISNUMBER(#REF!),((#REF!-CY47)^2)/(0.1*(CY47))^2,"") ->  | CV56: =IF(ISNUMBER(#REF!),((#REF!-CZ47)^2)/(0.1*(CZ47))^2,"") ->  | CW56: =IF(ISNUMBER(#REF!),((#REF!-DA47)^2)/(0.1*(DA47))^2,"") ->  | CX56: =IF(ISNUMBER(#REF!),((#REF!-DB47)^2)/(0.1*(DB47))^2,"") ->  | CY56: =IF(ISNUMBER(#REF!),((#REF!-DC47)^2)/(0.1*(DC47))^2,"") ->  | CZ56: =IF(ISNUMBER(#REF!),((#REF!-DD47)^2)/(0.1*(DD47))^2,"") ->  | DA56: =IF(ISNUMBER(#REF!),((#REF!-DE47)^2)/(0.1*(DE47))^2,"") ->  | DB56: =IF(ISNUMBER(#REF!),((#REF!-DF47)^2)/(0.1*(DF47))^2,"") ->  | DC56: =IF(ISNUMBER(#REF!),((#REF!-DG47)^2)/(0.1*(DG47))^2,"") ->  | DD56: =IF(ISNUMBER(#REF!),((#REF!-DH47)^2)/(0.1*(DH47))^2,"") ->  | DE56: =IF(ISNUMBER(#REF!),((#REF!-DI47)^2)/(0.1*(DI47))^2,"") ->  | DF56: =IF(ISNUMBER(#REF!),((#REF!-DJ47)^2)/(0.1*(DJ47))^2,"") ->  | DG56: =IF(ISNUMBER(#REF!),((#REF!-DK47)^2)/(0.1*(DK47))^2,"") ->  | DH56: =IF(ISNUMBER(#REF!),((#REF!-DL47)^2)/(0.1*(DL47))^2,"") ->  | DI56: =IF(ISNUMBER(#REF!),((#REF!-DM47)^2)/(0.1*(DM47))^2,"") ->  | DJ56: =IF(ISNUMBER(#REF!),((#REF!-DN47)^2)/(0.1*(DN47))^2,"") ->  | DK56: =IF(ISNUMBER(#REF!),((#REF!-DO47)^2)/(0.1*(DO47))^2,"") ->  | DL56: =IF(ISNUMBER(#REF!),((#REF!-DP47)^2)/(0.1*(DP47))^2,"") ->  | DM56: =IF(ISNUMBER(#REF!),((#REF!-DQ47)^2)/(0.1*(DQ47))^2,"") ->  | DN56: =IF(ISNUMBER(#REF!),((#REF!-DR47)^2)/(0.1*(DR47))^2,"") ->  | DO56: =IF(ISNUMBER(#REF!),((#REF!-DS47)^2)/(0.1*(DS47))^2,"") ->  | DP56: =IF(ISNUMBER(#REF!),((#REF!-DT47)^2)/(0.1*(DT47))^2,"") ->  | DQ56: =IF(ISNUMBER(#REF!),((#REF!-DU47)^2)/(0.1*(DU47))^2,"") ->  | DR56: =IF(ISNUMBER(#REF!),((#REF!-DV47)^2)/(0.1*(DV47))^2,"") ->  | DS56: =IF(ISNUMBER(#REF!),((#REF!-DW47)^2)/(0.1*(DW47))^2,"") ->  | DT56: =IF(ISNUMBER(#REF!),((#REF!-DX47)^2)/(0.1*(DX47))^2,"") ->  | DU56: =IF(ISNUMBER(#REF!),((#REF!-DY47)^2)/(0.1*(DY47))^2,"") ->  | DV56: =IF(ISNUMBER(#REF!),((#REF!-DZ47)^2)/(0.1*(DZ47))^2,"") ->  | DW56: =IF(ISNUMBER(#REF!),((#REF!-EA47)^2)/(0.1*(EA47))^2,"") ->  | DX56: =IF(ISNUMBER(#REF!),((#REF!-EB47)^2)/(0.1*(EB47))^2,"") ->  | DY56: =IF(ISNUMBER(#REF!),((#REF!-EC47)^2)/(0.1*(EC47))^2,"") ->  | DZ56: =IF(ISNUMBER(#REF!),((#REF!-ED47)^2)/(0.1*(ED47))^2,"") ->  | EA56: =IF(ISNUMBER(#REF!),((#REF!-EE47)^2)/(0.1*(EE47))^2,"") ->  | EB56: =IF(ISNUMBER(#REF!),((#REF!-EF47)^2)/(0.1*(EF47))^2,"") ->  | EC56: =IF(ISNUMBER(#REF!),((#REF!-EG47)^2)/(0.1*(EG47))^2,"") ->  | ED56: =IF(ISNUMBER(#REF!),((#REF!-EH47)^2)/(0.1*(EH47))^2,"") ->  | EE56: =IF(ISNUMBER(#REF!),((#REF!-EI47)^2)/(0.1*(EI47))^2,"") ->  | EF56: =IF(ISNUMBER(#REF!),((#REF!-EJ47)^2)/(0.1*(EJ47))^2,"") ->  | EG56: =IF(ISNUMBER(#REF!),((#REF!-EK47)^2)/(0.1*(EK47))^2,"") ->  | EH56: =IF(ISNUMBER(#REF!),((#REF!-EL47)^2)/(0.1*(EL47))^2,"") ->  | EI56: =IF(ISNUMBER(#REF!),((#REF!-EM47)^2)/(0.1*(EM47))^2,"") ->  | EJ56: =IF(ISNUMBER(#REF!),((#REF!-EN47)^2)/(0.1*(EN47))^2,"") ->  | EK56: =IF(ISNUMBER(#REF!),((#REF!-EO47)^2)/(0.1*(EO47))^2,"") ->  | EL56: =IF(ISNUMBER(#REF!),((#REF!-EP47)^2)/(0.1*(EP47))^2,"") ->  | EM56: =IF(ISNUMBER(#REF!),((#REF!-EQ47)^2)/(0.1*(EQ47))^2,"") ->  | EN56: =IF(ISNUMBER(#REF!),((#REF!-ER47)^2)/(0.1*(ER47))^2,"") ->  | EO56: =IF(ISNUMBER(#REF!),((#REF!-ES47)^2)/(0.1*(ES47))^2,"") ->  | EP56: =IF(ISNUMBER(#REF!),((#REF!-ET47)^2)/(0.1*(ET47))^2,"") ->  | EQ56: =IF(ISNUMBER(#REF!),((#REF!-EU47)^2)/(0.1*(EU47))^2,"") ->  | ER56: =IF(ISNUMBER(#REF!),((#REF!-EV47)^2)/(0.1*(EV47))^2,"") ->  | ES56: =IF(ISNUMBER(#REF!),((#REF!-EW47)^2)/(0.1*(EW47))^2,"") ->  | ET56: =IF(ISNUMBER(#REF!),((#REF!-EX47)^2)/(0.1*(EX47))^2,"") ->  | EU56: =IF(ISNUMBER(#REF!),((#REF!-EY47)^2)/(0.1*(EY47))^2,"") ->  | EV56: =IF(ISNUMBER(#REF!),((#REF!-EZ47)^2)/(0.1*(EZ47))^2,"") ->  | EW56: =IF(ISNUMBER(#REF!),((#REF!-FA47)^2)/(0.1*(FA47))^2,"") ->  | EX56: =IF(ISNUMBER(#REF!),((#REF!-FB47)^2)/(0.1*(FB47))^2,"") ->  | EY56: =IF(ISNUMBER(#REF!),((#REF!-FC47)^2)/(0.1*(FC47))^2,"") ->  | EZ56: =IF(ISNUMBER(#REF!),((#REF!-FD47)^2)/(0.1*(FD47))^2,"") ->  | FA56: =IF(ISNUMBER(#REF!),((#REF!-FE47)^2)/(0.1*(FE47))^2,"") ->  | FB56: =IF(ISNUMBER(#REF!),((#REF!-FF47)^2)/(0.1*(FF47))^2,"") ->  | FC56: =IF(ISNUMBER(#REF!),((#REF!-FG47)^2)/(0.1*(FG47))^2,"") ->  | FD56: =IF(ISNUMBER(#REF!),((#REF!-FH47)^2)/(0.1*(FH47))^2,"") ->  | FE56: =IF(ISNUMBER(#REF!),((#REF!-FI47)^2)/(0.1*(FI47))^2,"") ->  | FF56: =IF(ISNUMBER(#REF!),((#REF!-FJ47)^2)/(0.1*(FJ47))^2,"") ->  | FG56: =IF(ISNUMBER(#REF!),((#REF!-FK47)^2)/(0.1*(FK47))^2,"") ->  | FH56: =IF(ISNUMBER(#REF!),((#REF!-FL47)^2)/(0.1*(FL47))^2,"") ->  | FI56: =IF(ISNUMBER(#REF!),((#REF!-FM47)^2)/(0.1*(FM47))^2,"") ->  | FJ56: =IF(ISNUMBER(#REF!),((#REF!-FN47)^2)/(0.1*(FN47))^2,"") ->  | FK56: =IF(ISNUMBER(#REF!),((#REF!-FO47)^2)/(0.1*(FO47))^2,"") ->  | FL56: =IF(ISNUMBER(#REF!),((#REF!-FP47)^2)/(0.1*(FP47))^2,"") ->  | FM56: =IF(ISNUMBER(#REF!),((#REF!-FQ47)^2)/(0.1*(FQ47))^2,"") ->  | FN56: =IF(ISNUMBER(#REF!),((#REF!-FR47)^2)/(0.1*(FR47))^2,"") ->  | FO56: =IF(ISNUMBER(#REF!),((#REF!-FS47)^2)/(0.1*(FS47))^2,"") ->  | FP56: =IF(ISNUMBER(#REF!),((#REF!-FT47)^2)/(0.1*(FT47))^2,"") ->  | FQ56: =IF(ISNUMBER(#REF!),((#REF!-FU47)^2)/(0.1*(FU47))^2,"") ->  | FR56: =IF(ISNUMBER(#REF!),((#REF!-FV47)^2)/(0.1*(FV47))^2,"") ->  | FS56: =IF(ISNUMBER(#REF!),((#REF!-FW47)^2)/(0.1*(FW47))^2,"") ->  | FT56: =IF(ISNUMBER(#REF!),((#REF!-FX47)^2)/(0.1*(FX47))^2,"") ->  | FU56: =IF(ISNUMBER(#REF!),((#REF!-FY47)^2)/(0.1*(FY47))^2,"") ->  | FV56: =IF(ISNUMBER(#REF!),((#REF!-FZ47)^2)/(0.1*(FZ47))^2,"") ->  | FW56: =IF(ISNUMBER(#REF!),((#REF!-GA47)^2)/(0.1*(GA47))^2,"") ->  | FX56: =IF(ISNUMBER(#REF!),((#REF!-GB47)^2)/(0.1*(GB47))^2,"") ->  | FY56: =IF(ISNUMBER(#REF!),((#REF!-GC47)^2)/(0.1*(GC47))^2,"") ->  | FZ56: =IF(ISNUMBER(#REF!),((#REF!-GD47)^2)/(0.1*(GD47))^2,"") ->  | GA56: =IF(ISNUMBER(#REF!),((#REF!-GE47)^2)/(0.1*(GE47))^2,"") ->  | GB56: =IF(ISNUMBER(#REF!),((#REF!-GF47)^2)/(0.1*(GF47))^2,"") ->  | GC56: =IF(ISNUMBER(#REF!),((#REF!-GG47)^2)/(0.1*(GG47))^2,"") ->  | GD56: =IF(ISNUMBER(#REF!),((#REF!-GH47)^2)/(0.1*(GH47))^2,"") ->  | GE56: =IF(ISNUMBER(#REF!),((#REF!-GI47)^2)/(0.1*(GI47))^2,"") ->  | GF56: =IF(ISNUMBER(#REF!),((#REF!-GJ47)^2)/(0.1*(GJ47))^2,"") ->  | GG56: =IF(ISNUMBER(#REF!),((#REF!-GK47)^2)/(0.1*(GK47))^2,"") ->  | GH56: =IF(ISNUMBER(#REF!),((#REF!-GL47)^2)/(0.1*(GL47))^2,"") ->  | GI56: =IF(ISNUMBER(#REF!),((#REF!-GM47)^2)/(0.1*(GM47))^2,"") ->  | GJ56: =IF(ISNUMBER(#REF!),((#REF!-GN47)^2)/(0.1*(GN47))^2,"") ->  | GK56: =IF(ISNUMBER(#REF!),((#REF!-GO47)^2)/(0.1*(GO47))^2,"") ->  | GL56: =IF(ISNUMBER(#REF!),((#REF!-GP47)^2)/(0.1*(GP47))^2,"") -> 
B57: Square of Errors for Serum Levels | E57: =IF(ISNUMBER(E53),((E53-E49)^2)/(0.1*(E53))^2,"") ->  | F57: =IF(ISNUMBER(F53),((F53-F49)^2)/(0.1*(F53))^2,"") ->  | G57: =IF(ISNUMBER(G53),((G53-G49)^2)/(0.1*(G53))^2,"") ->  | H57: =IF(ISNUMBER(H53),((H53-H49)^2)/(0.1*(H53))^2,"") ->  | Y57: =IF(ISNUMBER(Y53),((Y53-Y49)^2)/(0.1*(Y53))^2,"") -> 0.01934019337 | BR57: =IF(ISNUMBER(BR53),((BR53-BR49)^2)/(0.1*(BR53))^2,"") ->  | ED57: =IF(ISNUMBER(ED53),((ED53-ED49)^2)/(0.1*(ED53))^2,"") ->  | GP57: =IF(ISNUMBER(GP53),((GP53-GP49)^2)/(0.1*(GP53))^2,"") -> 
B59: Bayesian Fitting of 1= Km & Vmax, 2 =Km, Vmax, & Vd | C59: 1
B60: Sum of Square of Errors | C60: =IF(C59=1,SUM(E56:GP57)+(D15-C15)^2/(0.4*C15)^2+ (C19-D19)^2/(C19*0.4)^2,SUM(E56:GP57)+(C14-D14)^2/(0.4*C14)^2+(D15-C15)^2/(0.4*C15)^2+ (C19-D19)^2/(C19*0.4)^2) -> 0.7287091659

Sheet lookuparray (hidden)
A1: Age | B1: Age | C1: Age | D1: Vmax | E1: Km | F1: Vd | G1: Maintenance Dose Range | H1: Reference | K1: Salt | L1: Sex | M1: Dialysis | N1: Km (mg/L) | P1: Fitting Type
A2: 0.5 to < 1 | B2: 0.5 | C2: 0.99 | D2: 14 | E2: 6.6 | F2: 1 | G2: ? | H2: ? | J2: Capsule | K2: 0.92 | L2: Male | M2: No | N2: 1 | P2: 1 | Q2: Km Vmax
A3: 1 to < 4 | B3: 0.5 | C3: 3.9 | D3: 14 | E3: 6.6 | F3: 0.65 | G3: ? | H3: Clinical Pharmacokinetics John E Murphy 2005 | J3: Injection | K3: 0.92 | L3: Female | M3: Yes | N3: 2 | P3: 2 | Q3: Km Vax Vd
A4: 4 to < 7 | B4: 4 | C4: 6.9 | D4: 10.9 | E4: 6.8 | F4: 0.65 | G4: 4-10 | H4: Clinical Pharmacokinetics John E Murphy 2005 | J4: Suspension | K4: 1 | N4: 3
A5: 7 to < 10 | B5: 7 | C5: 9.9 | D5: 10.1 | E5: 6.5 | F5: 0.65 | G5: 4-10 | H5: Clinical Pharmacokinetics John E Murphy 2005 | J5: Tablet | K5: 1 | N5: 4
A6: 10 to < 18 | B6: 10 | C6: 17.9 | D6: 8.3 | E6: 5.7 | F6: 0.65 | G6: 4-10 | H6: Clinical Pharmacokinetics John E Murphy 2005 | N6: 4.3
A7: 18 to 59 | B7: 18 | C7: 59 | D7: 7 | E7: 4.3 | F7: 0.65 | G7: 4-7 | H7: Clinical Pharmacokinetics John E Murphy 2005 | N7: 5
A8: > 59 | B8: 59.1 | C8: 120 | D8: 7 | E8: 5.8 | F8: 0.65 | G8: 4-7 | H8: Clinical Pharmacokinetics John E Murphy 2005 | N8: 5.8
N9: 6
N10: 7
A11: Age | B11: Age | C11: Age | D11: Vmax | E11: Km | F11: SD Vmax | G11: CV Vax | H11: SD Km | I11: CV Km | N11: 8
A12: 0.5 to < 1 | B12: 0.5 | C12: 3.9 | D12: 14 | E12: 6.6 | F12: 4.2 | G12: =F12/D12 -> 0.3 | H12: 4.2 | I12: =H12/E12 -> 0.6363636364 | N12: 9
A13: 1 to < 4 | B13: 1 | C13: 3.9 | D13: 14 | E13: 6.6 | F13: 4.2 | G13: =F13/D13 -> 0.3 | H13: 4.2 | I13: =H13/E13 -> 0.6363636364 | N13: 10
A14: 4 to < 7 | B14: 4 | C14: 6.9 | D14: 10.9 | E14: 6.8 | F14: 3 | G14: 0.2752293578 | H14: 3.5 | I14: 0.5147058824 | N14: 11
A15: 7 to < 10 | B15: 7 | C15: 9.9 | D15: 10.1 | E15: 6.5 | F15: 2.6 | G15: 0.2574257426 | H15: 3 | I15: 0.4615384615 | N15: 12
A16: 10 to < 18 | B16: 10 | C16: 17.9 | D16: 8.3 | E16: 5.7 | F16: 2.8 | G16: 0.3373493976 | H16: 2.7 | I16: 0.4736842105 | N16: 13
A17: 18 to 59 | B17: 18 | C17: 59 | D17: 7 | E17: 4.3 | F17: 3 | G17: 0.4285714286 | H17: 3.5 | I17: 0.8139534884 | N17: 14
A18: > 59 | B18: 59.1 | C18: 120 | D18: 7 | E18: 5.8 | F18: 3 | G18: 0.4285714286 | H18: 2.3 | I18: 0.3965517241 | N18: 15
N19: 16
